Cogmind - Beta 16 @@@ ROGUE MODE // 2025.10.29 @ 21:36:01 Player: GiggleBox Result: Destroyed by Executioner with Helical Railgun Performance ------------- Evolutions (8) 4000 Regions Visited (28) 5600 Robots Destroyed (261) 1305 Value Destroyed (13072) 13072 Prototype IDs (163) 3260 Alien Tech Used (6) 1200 Bonus (7368) 7368 TOTAL SCORE: 35805 Bonus ------- High Alert Combat Kills 5250 Follower Combat Kills 535 Registered with UFD 300 Met Optimus in HQ 500 Met Imprinter 300 Met Zhirov 300 Met Optimus at Protoforge 1000 Friendly Fire -817 Cogmind --------- Core Integrity 0/1450 Matter 300/300 Energy 425/425 System Corruption 17% Temperature Cool (0) Movement Walking (106) Location -2/Protoforge Parts ------- > --- POWER (2) -------- Overtuned Antimatter Reactor > --- PROPULSION (8) --- Myomer Leg Overtuned Armored Exoskeleton Enhanced Biometal Leg Enhanced Biometal Leg Enhanced Biometal Leg Experimental VSS Leg > --- UTILITY (10) ----- 0bPrime Scrap Suit Experimental Coolant Injector Large Storage Unit Experimental Optical Array Experimental Targeting Computer Experimental Core Analyzer Experimental Reaction Control System Improved Core Shielding Centrium Medium Armor Plating > --- WEAPON (4) ------- Overtuned Railgun Helical Railgun Helical Railgun Helical Railgun > --- INVENTORY (15) --- High-capacity Matter Pod (200) Point Singularity Launcher Segregator Plasma Lance UFD Drillbomb Peak State ------------ > --- POWER ------------ Micro Antimatter Reactor Light Quantum Reactor > --- PROPULSION ------- Overtuned Armored Exoskeleton Experimental Biometal Leg Experimental Biometal Leg Experimental VSS Leg Experimental VSS Leg Experimental VSS Leg > --- UTILITY ---------- 0bPrime Scrap Suit Experimental Coolant Injector Large Storage Unit Experimental Core Analyzer Experimental Armor Integrity Analyzer Experimental Kinecellerator Experimental Reaction Control System Centrium Medium Armor Plating A0-MCA's Component Scanner > --- WEAPON ----------- Concept XC Strikerail Concept XC Strikerail Sigix Broadsword > --- INVENTORY -------- Micro Fission Core Experimental Heat Sink High-capacity Matter Pod Long-range Terrain Scanner Experimental Targeting Computer Experimental Core Analyzer Improved Transmission Jammer Makeshift ECM Suite Advanced Cloaking Device Tachyon Dispersion Ray Point Singularity Launcher Lance Enhanced Force Lance [Rating: 234] Favorites ----------- Power Ion Engine Engine Ion Engine Power Core Micro Fission Core Reactor Micro Antimatter Reactor Propulsion Light Treads Treads Light Treads Leg Experimental VSS Leg Hover Unit Improved Hover Unit Flight Unit Cesium-ion Thruster Utility Large Storage Unit Device Gravity Neutralizer Storage Large Storage Unit Processor Surveybot 17 Chip Hackware Advanced System Shield Protection Centrium Medium Armor Plating Weapon Heavy Assault Rifle Energy Gun Heavy EM Pulse Gun Energy Cannon Advanced Plasma Cannon Ballistic Gun Heavy Assault Rifle Ballistic Cannon Light Cannon Launcher Point Singularity Launcher Impact Weapon Heavy Hammer Slashing Weapon Axe Piercing Weapon Lance Build | -11 -10 -10 -9 -9 -8 -8 -8 -8 -6 -6 -6 -6 -6 -6 -5 -5 -5 -5 -4 -4 -4 -4 -3 -3 -3 -2 -2 -2 ------- Run | Yrd Mat Min Mat Min Mat Sto Rec Scr Fac Was Fac Low Low Zio Pro Fac Upp Upp Fac Upp Upp Zhi Pro Res Tes Res Qua Frg Slots Evolved 16 | . . . 2 . 2 . . . 4 . . . . . . 2 . . 2 . . . . 2 . 2 . . Power 1 | . . . . . . . . . 1 . . . . . . . . . . . . . . . . . . . Propulsion 6 | . . . 1 . 1 . . . 2 . . . . . . . . . 1 . . . . . . 1 . . Utility 8 | . . . . . 1 . . . 1 . . . . . . 2 . . 1 . . . . 2 . 1 . . Weapon 1 | . . . 1 . . . . . . . . . . . . . . . . . . . . . . . . . Parts Attached 199 | 8 12 8 25 3 12 8 6 3 1 . 5 1 1 3 . 10 1 1 15 3 . . . 6 3 3 6 55 Power 24 | 2 . 1 1 . 1 1 . . . . 1 1 . . . 2 . 1 3 . . . . 2 . . 1 7 Engine 9 | 2 . 1 1 . 1 1 . . . . 1 . . . . 1 . 1 . . . . . . . . . . Core 3 | . . . . . . . . . . . . 1 . . . 1 . . 1 . . . . . . . . . Reactor 12 | . . . . . . . . . . . . . . . . . . . 2 . . . . 2 . . 1 7 Propulsion 58 | 2 3 3 6 2 6 2 4 . . . 1 . . 1 . 4 . . 2 1 . . . 3 . 1 1 16 Treads 18 | 2 3 3 6 2 2 . . . . . . . . . . . . . . . . . . . . . . . Leg 14 | . . . . . . . . . . . . . . . . . . . . . . . . . . . . 14 Wheel . | . . . . . . . . . . . . . . . . . . . . . . . . . . . . . Hover 7 | . . . . . 4 2 . . . . . . . . . 1 . . . . . . . . . . . . Flight 19 | . . . . . . . 4 . . . 1 . . 1 . 3 . . 2 1 . . . 3 . 1 1 2 Utility 57 | 2 2 1 7 1 1 2 2 1 1 . 2 . . 1 . 4 . . 8 1 . . . 1 . 2 1 17 Device 23 | 1 1 . . 1 1 2 . . . . . . . 1 . 2 . . 4 1 . . . . . 1 1 7 Storage 3 | 1 1 . 1 . . . . . . . . . . . . . . . . . . . . . . . . . Processor 11 | . . . . . . . . 1 . . 1 . . . . 1 . . 2 . . . . . . . . 6 Hackware 8 | . . . 3 . . . 1 . . . 1 . . . . 1 . . 1 . . . . 1 . . . . Protection 12 | . . 1 3 . . . 1 . 1 . . . . . . . . . 1 . . . . . . 1 . 4 Artifact . | . . . . . . . . . . . . . . . . . . . . . . . . . . . . . Weapon 60 | 2 7 3 11 . 4 3 . 2 . . 1 . 1 1 . . 1 . 2 1 . . . . 3 . 3 15 Energy Gun 15 | 2 6 2 2 . . 1 . 1 . . . . . . . . . . . . . . . . 1 . . . Energy Cannon 8 | . . . 1 . 1 1 . . . . . . . . . . 1 . 2 . . . . . 1 . 1 . Ballistic Gun 24 | . . . 7 . 2 . . . . . 1 . . . . . . . . . . . . . . . . 14 Ballistic Cannon 1 | . 1 . . . . . . . . . . . . . . . . . . . . . . . . . . . Launcher 5 | . . 1 1 . . 1 . . . . . . 1 . . . . . . . . . . . . . . 1 Special Weapon . | . . . . . . . . . . . . . . . . . . . . . . . . . . . . . Impact Weapon 1 | . . . . . 1 . . . . . . . . . . . . . . . . . . . . . . . Slashing Weapon 4 | . . . . . . . . 1 . . . . . 1 . . . . . 1 . . . . . . 1 . Piercing Weapon 2 | . . . . . . . . . . . . . . . . . . . . . . . . . 1 . 1 . Special Melee Weapon . | . . . . . . . . . . . . . . . . . . . . . . . . . . . . . Unidentified Prototypes 11 | . . . 1 1 . 3 . . . . . . . . . . 1 . . . . 1 . . . 1 3 . Corrupted Parts 1 | . . . . . . . . . . . . . . 1 . . . . . . . . . . . . . . System Corruption 5 | . . . . . . . . . . . . . . 5 . . . . . . . . . . . . . . Parts Lost 60 | . . 9 3 1 8 3 3 . . . . . 2 . . 4 . . . . . . . . . 1 . 26 Power 7 | . . 1 . . . 1 . . . . . . . . . 1 . . . . . . . . . . . 4 Propulsion 25 | . . 3 1 1 4 2 3 . . . . . 2 . . 1 . . . . . . . . . 1 . 7 Utility 7 | . . . . . 1 . . . . . . . . . . 1 . . . . . . . . . . . 5 Weapon 21 | . . 5 2 . 3 . . . . . . . . . . 1 . . . . . . . . . . . 10 Highest Loss Streak 8 | . . 8 2 1 7 2 2 . . . . . 2 . . 2 . . . . . . . . . 1 . 4 To Critical Strikes 1 | . . . . . . . . . . . . . . . . . . . . . . . . . . . . 1 Average Backups 12 | 3 13 13 13 14 13 13 13 13 13 13 13 13 14 13 14 13 13 14 13 12 13 12 13 13 14 13 11 7 Power . | . 1 . 1 1 1 1 . . . . . 1 1 2 2 1 1 1 1 1 1 1 1 1 2 2 2 . Propulsion 2 | 1 4 4 4 4 3 . . 2 2 1 . . 1 . . 1 3 2 1 1 2 1 1 1 2 2 2 . Utility 5 | . 4 4 4 5 6 6 6 7 8 8 8 8 7 8 9 7 8 9 9 8 8 8 8 6 6 5 5 2 Weapon 3 | . 3 3 3 3 2 5 6 4 3 3 4 3 4 3 3 2 1 1 1 1 2 2 2 2 3 3 2 3 Tool/Special . | . . . . . . . . . . . . . . . . . . . . . . . . . . . . . Unused Backups 36 | . 8 . 4 1 . 1 1 3 . . 2 1 1 . . 2 1 . 1 1 . . . . . 1 2 6 Power 3 | . . . 1 . . 1 . . . . . 1 . . . . . . . . . . . . . . . . Propulsion 5 | . 2 . 1 . . . . 1 . . . . . . . . . . . . . . . . . . . 1 Utility 17 | . 6 . . . . . . 1 . . 2 . 1 . . 2 1 . 1 1 . . . . . . . 2 Weapon 10 | . . . 1 1 . . 1 1 . . . . . . . . . . . . . . . . . 1 2 3 Tool/Special 1 | . . . 1 . . . . . . . . . . . . . . . . . . . . . . . . . Average Slot Usage (%) 85 | . 99 95 98 100 91 77 65 79 66 66 70 80 57 63 66 80 77 77 80 84 85 77 85 85 86 86 85 81 Engine 6 | . 14 12 10 11 8 8 9 9 6 6 11 6 1 . . 8 5 5 3 . . . . . . . . . Core 1 | . . . . . . . . . . . . 5 6 6 6 2 5 5 5 5 5 5 5 3 4 4 3 . Reactor 1 | . . . . . . . . . . . . . . . . . . . 1 5 5 5 5 4 4 4 4 6 Treads 10 | . 27 27 32 33 23 . . . . . . . . . . . . . . . . . . . . . . . Leg 3 | . . . . . . . . . . . . . . . . . . . . . . . . . . . . 18 Hover 2 | . . . . . 10 32 14 . . . . . . . . 1 . . . . . . . . . . . . Flight 10 | . . . . . . . 8 36 26 26 27 33 22 25 26 27 22 22 20 20 20 20 20 18 18 19 20 3 Device 11 | . 13 12 2 1 10 18 9 9 6 6 10 12 13 12 13 15 16 16 14 14 15 15 15 17 18 16 16 13 Storage 7 | . 14 14 11 11 9 9 9 9 6 6 6 6 6 6 6 5 5 5 5 5 5 5 5 4 4 4 4 4 Processor 6 | . . . . . . . . 7 6 6 6 6 6 6 6 10 11 11 15 15 15 15 15 13 13 12 12 14 Hackware 1 | . . . 1 . . . 8 1 . . 1 . . . . . . . . . . . . 4 4 4 4 . Protection 2 | . . 1 6 9 6 . . . 6 6 . . . . . . . . . . . . . . . 3 4 4 Energy Gun 4 | . 26 23 4 . . . . . . . . . . . . . . . . . . . . . 2 4 4 . Energy Cannon 1 | . . . . . . . . . . . . . . . . . 2 5 9 10 10 2 10 9 5 4 4 . Ballistic Gun 8 | . . . 27 33 18 . . . . . . . . . . . . . . . . . . . . . . 10 Slashing Weapon 2 | . . . . . . . . 7 6 6 4 6 . 4 6 5 5 5 5 9 10 10 10 9 7 4 2 1 Peak Build Rating 234 | 7 13 13 20 26 28 35 32 35 35 36 50 63 52 55 49 85 82 83 125 127 127 128 128 151 162 181 205 234 Average Rating 79 | 6 10 10 16 19 23 24 25 33 35 35 44 52 41 47 48 72 77 82 115 126 127 115 128 146 157 179 186 200 On Entrance 70 | . 7 11 10 20 21 24 26 32 34 35 35 45 52 40 49 49 75 82 82 118 127 127 128 128 151 162 171 199 Avg Prop Armor Cover (%) 5 | . . . 8 . . 25 6 5 . . . . . . . 5 . . . . . . . . . 1 . 2 Naked Turns . | . . . . . . . . . . . . . . . . . . . . . . . . . . . . . Heaviest Build 105 | 14 32 36 45 45 60 34 30 28 31 31 36 38 38 49 33 48 48 48 63 65 65 65 65 66 62 74 77 105 Greatest Support 234 | 40 40 40 63 63 83 48 36 32 32 32 42 42 42 34 34 55 55 55 66 66 66 66 66 69 74 81 80 234 Greatest Overweight (x) 10 | . 10 1 1 . . 1 1 . . . . . . 2 . 1 . . 1 . . . . . . . . 1 Average Overweight (x) . | . . . . . . . . . . . . . . . . . . . . . . . . . . . . . Largest Inventory Capacity 15 | 8 15 15 15 15 15 15 15 15 15 15 15 15 15 15 15 15 15 15 15 15 15 15 15 15 15 15 15 15 Average Capacity 14 | 7 14 15 15 15 15 15 15 15 15 15 15 15 15 15 15 15 15 15 15 15 15 15 15 15 15 15 15 15 Most Carried 15 | 5 15 15 15 15 15 15 15 15 14 15 15 15 15 15 15 15 15 15 15 15 15 15 15 15 15 15 15 15 Average Carried 13 | 3 14 13 13 14 13 14 14 14 14 14 14 14 14 14 15 14 14 14 14 14 15 14 15 14 15 14 12 9 Final Capacity 15 | 8 15 15 15 15 15 15 15 15 15 15 15 15 15 15 15 15 15 15 15 15 15 15 15 15 15 15 15 15 Final Carried 15 | 5 15 9 15 15 14 13 14 15 14 14 15 15 15 15 15 15 15 15 15 15 15 15 15 15 15 14 14 14 Scrap Suit Usage (%) 10 | . . . . . . . . . . . . . . . . . . . . . . . . . . . . 56 Parts Cannibalized 42 | . . . . . . . . . . . . . . . . . . . . . . . . . . . . 42 Class Distribution -------------------- 17% | Mutant 13% | Tank 11% | Scavenger-Gunner 10% | Sprinter 9% | Scout 7% | Commander-Mutant 6% | Commander-Sprinter 5% | Scientist-Ninja 5% | Gunner 4% | Ninja Dominant Class ---------------- Mutant | -10/Materials Mutant | -10/Mines Tank | -9/Materials Tank | -9/Mines Scavenger-Tank | -8/Materials Commander-Mutant | -8/Storage Commander-Mutant | -8/Recycling Commander-Sprinter | -8/Scraptown Commander-Sprinter | -6/Factory Sprinter | -6/Waste Commander-Sprinter | -6/Factory Sprinter | -6/Lower Caves Sprinter | -6/Lower Caves Sprinter | -6/Zion Sprinter | -5/Proximity Caves Sprinter | -5/Factory Scout | -5/Upper Caves Scout | -5/Upper Caves Scout | -4/Factory Scout | -4/Upper Caves Scout | -4/Upper Caves Scout | -4/Zhirov Scout | -3/Proximity Caves Ninja | -3/Research Ninja | -3/Testing Ninja | -2/Research Scientist-Ninja | -2/Quarantine Scavenger-Gunner | -2/Protoforge Resources | -11 -10 -10 -9 -9 -8 -8 -8 -8 -6 -6 -6 -6 -6 -6 -5 -5 -5 -5 -4 -4 -4 -4 -3 -3 -3 -2 -2 -2 ----------- Run | Yrd Mat Min Mat Min Mat Sto Rec Scr Fac Was Fac Low Low Zio Pro Fac Upp Upp Fac Upp Upp Zhi Pro Res Tes Res Qua Frg Matter Collected 11414 | 270 294 222 1290 168 480 135 83 47 . . . 194 49 40 96 122 198 4 283 70 40 20 . 100 12 68 57 7072 Remotely . | . . . . . . . . . . . . . . . . . . . . . . . . . . . . . Salvage Created 11307 | 115 748 138 1867 309 740 175 767 . . . 10 117 . . . 130 . . 76 . . 215 . . 12 42 57 5789 Parts 588 | 5 44 7 113 18 37 12 3 . . . 2 3 1 . . 7 . . 4 . . 1 . . 1 2 5 323 Haulers Intercepted 9 | . 1 . 5 . . 2 . . . . . . . . . 1 . . . . . . . . . . . . Recyclers Shooed 5 | . 1 . 3 . . . 1 . . . . . . . . . . . . . . . . . . . . . Parts Field Recycled . | . . . . . . . . . . . . . . . . . . . . . . . . . . . . . Retrieved Matter . | . . . . . . . . . . . . . . . . . . . . . . . . . . . . . Parts Self-Destructed 3 | . . . . . . . . . . . . . . . . . . . . . . 1 2 . . . . . Prevented 2 | . . . . . . . . . . . . 1 1 . . . . . . . . . . . . . . . Parts Restored . | . . . . . . . . . . . . . . . . . . . . . . . . . . . . . Kills | -11 -10 -10 -9 -9 -8 -8 -8 -8 -6 -6 -6 -6 -6 -6 -5 -5 -5 -5 -4 -4 -4 -4 -3 -3 -3 -2 -2 -2 ------- Run | Yrd Mat Min Mat Min Mat Sto Rec Scr Fac Was Fac Low Low Zio Pro Fac Upp Upp Fac Upp Upp Zhi Pro Res Tes Res Qua Frg Combat Hostiles Destroyed 216 | . 15 17 37 7 16 1 . . . . . 4 1 . . 1 . . . . . . . . . . . 117 Melee 9 | . . 1 . . . 1 . . . . . . . . . . . . . . . . . . . . . 7 Guns 154 | . 11 6 33 7 13 . . . . . . . . . . . . . . . . . . . . . . 84 Cannons 7 | . 3 4 . . . . . . . . . . . . . . . . . . . . . . . . . . AOE 42 | . 1 6 4 . . . . . . . . 3 1 . . 1 . . . . . . . . . . . 26 Classes Destroyed 28 | 2 5 2 3 . 3 . . . . . . . 1 . . . . . . . . . . . . . . 12 Worker 3 | . . . 2 . . . . . . . . . . . . . . . . . . . . . . . . 1 Builder 3 | . 1 . . . 1 . 1 . . . . . . . . . . . . . . . . . . . . . Tunneler 5 | 1 1 . . 1 1 . . . . . 1 . . . . . . . . . . . . . . . . . Hauler 9 | . 1 . 5 . . 2 . . . . . . . . . 1 . . . . . . . . . . . . Recycler 12 | 1 . . 2 . . . 9 . . . . . . . . . . . . . . . . . . . . . Carrier 1 | . . . . . . . . . . . . . . . . . . . . . . . . . . . . 1 Mechanic 4 | . . . . . . . . . . . . . . . . . . . . . . . . . . . . 4 Operator 7 | . 2 . 1 . 1 1 . . . . . . . . . . . . . . . . . . 1 . 1 . Drone 10 | . . . . . . . . . . . . . . . . . . . . . . . . . . . . 10 Watcher 13 | . 2 . 4 . . 1 . . . . . . . . . . . . 2 . . . . . . 1 1 2 Swarmer 31 | . . 3 8 . 3 . . . . . . 4 . . . 1 . . . . . . . . . . . 12 Saboteur 5 | . . . . . . . . . . . . . . . . . . . . . . . . . . . . 5 Grunt 58 | . 15 . 19 5 7 . . . . . . . . . . . . . . . . . . . . . . 12 Brawler 6 | . . . . . 1 . . . . . . . . . . . . . . . . . . . . . . 5 Duelist 9 | . . . 1 . 1 . . . . . . . . . . . . . . . . . . . . . . 7 Protector 4 | . . . . . . . . . . . . . . . . . . . . . . . . . . . . 4 Sentry 14 | . . . 9 2 2 1 . . . . . . . . . . . . . . . . . . . . . . Hunter 11 | . . . . . 1 . . . . . . . . . . . . . . . . . . . . . . 10 Programmer 15 | . . . . . . . . . . . . . . . . . . . . . . . . . . . . 15 Heavy 1 | . . . . . 1 . . . . . . . . . . . . . . . . . . . . . . . Striker 20 | . . . . . . . . . . . . . . . . . . . . . . . . . . . . 20 Executioner 15 | . . . . . . . . . . . . . . . . . . . . . . . . . . . . 15 Alpha 7 1 | . . . . . . . . . . . . . . . . . . . . . . . . . . . . 1 Elite 1 | . . . . . . . . . . . . . . . . . . . . . . . . . . . . 1 Scrapoid 1 | . . . . . . . . . . . . . . . . . . . . . . . . . . . . 1 Scraphulk 1 | . . . . . . . . . . . . . . . . . . . . . . . . . . . . 1 Thief 1 | . . . . . . . . . . . . . 1 . . . . . . . . . . . . . . . Assembled 14 | . . 14 . . . . . . . . . . . . . . . . . . . . . . . . . . Best Kill Streak 17 | 1 4 10 4 3 4 2 2 . . . 1 4 1 . . 1 . . 1 . . . . . 1 1 1 17 Combat Bots Only 17 | . 3 10 4 3 4 1 . . . . . 4 1 . . 1 . . . . . . . . . . . 17 Max Kills in Single Turn 4 | 1 2 3 3 1 2 1 1 . . . 1 2 1 . . 1 . . 1 . . . . . 1 1 1 4 Gunslinging 1 | . . . 1 . 1 . . . . . . . . . . . . . . . . . . . . . . 1 Exploded 4 | . 1 3 3 . . . . . . . . 2 1 . . 1 . . . . . . . . . . . 4 Melee 1 | . . 1 . . . 1 . . . . . . . . . . . . . . . . . . . . . 1 Uniques/NPCs Destroyed . | . . . . . . . . . . . . . . . . . . . . . . . . . . . . . Combat | -11 -10 -10 -9 -9 -8 -8 -8 -8 -6 -6 -6 -6 -6 -6 -5 -5 -5 -5 -4 -4 -4 -4 -3 -3 -3 -2 -2 -2 -------- Run | Yrd Mat Min Mat Min Mat Sto Rec Scr Fac Was Fac Low Low Zio Pro Fac Upp Upp Fac Upp Upp Zhi Pro Res Tes Res Qua Frg Hostile Shots Fired 1282 | . 60 62 150 31 111 14 8 . . . 2 6 1 . 19 50 5 . 24 5 . . . 10 4 56 12 652 Missed 488 | . 28 16 46 7 26 2 2 . . . 1 1 . . 9 18 3 . 12 3 . . . 6 4 30 10 264 Hits 794 | . 32 46 104 24 85 12 6 . . . 1 5 1 . 10 32 2 . 12 2 . . . 4 . 26 2 388 Melee 56 | . . 23 4 . 7 . . . . . . . 1 . . . . . . . . . . . . . . 21 Projectile 738 | . 32 23 100 24 78 12 6 . . . 1 5 . . 10 32 2 . 12 2 . . . 4 . 26 2 367 Critical Strikes 33 | . . 2 2 . 6 1 1 . . . . . . . . 1 . . . . . . . . . 1 . 19 Part Disruptions 3 | . . 1 . . . . . . . . . . . . . . . . . . . . . . . . . 2 Damage Taken 17947 | . 427 1006 1365 355 1438 168 86 . . . 15 86 131 . 153 482 31 . 120 44 . . . 99 . 545 66 11330 Core 2152 | . 28 178 136 40 155 55 . . . . . . 81 . 13 103 14 . . . . . . . . 71 . 1278 Absorbed by Shields 12 | . . . . . . . . . . . . . . . . . . . . . . . . . . 12 . . Redirected to Shielding 80 | . . . . . . . . . . . . . . . . . . . . . . . . . . . . 80 Regen/Repaired (Parts) 1746 | . . . 347 . . . . . . . . . . 268 . 25 . . 34 . . . . . . . 32 1040 Core Remaining (%) 76 | 100 . 17 . 56 . . . 61 . . . . . . 88 . . 88 . . . . 100 . 100 . . . Volleys Fired 605 | 10 52 42 100 13 39 1 . . . . 6 5 3 . . 1 17 2 3 1 3 . . 2 8 14 8 275 Largest 4 | 2 2 2 3 3 3 1 . . . . 1 1 1 . . 1 1 1 1 1 1 . . 1 1 1 1 4 Hottest 154 | 90 90 90 95 69 69 75 . . . . 75 50 36 . . 50 75 98 98 98 98 . . 98 98 80 50 154 Shots Fired 1403 | 16 98 48 262 39 111 1 . . . . 6 5 3 . . 1 17 2 3 1 3 . . 2 8 14 10 753 Gun 1245 | 16 82 30 259 39 111 . . . . . 4 . . . . . . . . . . . . . 1 1 1 701 Cannon 100 | . 16 12 . . . 1 . . . . 2 . . . . . 17 2 3 1 3 . . 2 7 13 9 12 Launcher 58 | . . 6 3 . . . . . . . . 5 3 . . 1 . . . . . . . . . . . 40 Special . | . . . . . . . . . . . . . . . . . . . . . . . . . . . . . Kinetic 1114 | . 16 12 234 39 111 . . . . . 4 . . . . . . . . . . . . . . . . 698 Thermal 104 | 16 6 . 10 . . 1 . . . . 2 . . . . . 17 2 3 1 3 . . 2 7 13 9 12 Explosive 52 | . . 6 3 . . . . . . . . . 3 . . . . . . . . . . . . . . 40 Electromagnetic 133 | . 76 30 15 . . . . . . . . 5 . . . 1 . . . . . . . . 1 1 1 3 Robot Hit Streak 25 | 2 5 12 19 22 14 . . . . . . 2 1 . . . . . 2 . . . . . 1 2 . 25 Robot Miss Streak 8 | 3 5 3 4 1 3 . . . . . . . 2 . . . . . . . . . . . 1 . 1 8 Penetration Max 2 | . . . . . . . . . . . . . . . . . . . . . . . . . . . . 2 Secondary Targets 36 | . 1 . 4 1 5 . . . . . . . . . . . . . . . . . . . . . . 25 Max Gunslinging Chain 1 | . 1 . 1 1 1 . . . . . . . . . . . . . . . . . . . . . . 1 Shots Hit Robots 912 | 7 50 31 171 30 90 9 17 . . . 3 1 1 . . 1 . . 6 . . 8 . 1 2 4 4 476 Core Hits 504 | 3 30 31 72 11 30 4 1 . . . . 4 3 . . 2 . . 2 . . 1 . 1 1 1 2 305 Critical Kills 19 | . . . 1 . 1 1 . . . . . . . . . . . . . . . . . . . . . 16 Critical Parts Destroyed 28 | . . . 1 . 4 1 2 . . . . . . . . . . . . . . . . . . . . 20 Critical Strikes 55 | 2 3 . 2 . 5 2 2 . . . . . . . . . . . . . . . . . . 1 1 37 Burn 2 | 2 . . . . . . . . . . . . . . . . . . . . . . . . . . . . Destroy 40 | . . . 2 . 1 . . . . . . . . . . . . . . . . . . . . . . 37 Corrupt 3 | . 3 . . . . . . . . . . . . . . . . . . . . . . . . . . . Smash 8 | . . . . . 4 2 2 . . . . . . . . . . . . . . . . . . . . . Impale 2 | . . . . . . . . . . . . . . . . . . . . . . . . . . 1 1 . Melee Attacks 276 | . . . . . 14 19 20 . 1 . 8 . . 4 2 26 4 1 23 1 2 10 3 19 14 40 23 42 Impact 53 | . . . . . 14 19 20 . . . . . . . . . . . . . . . . . . . . . Slashing 199 | . . . . . . . . . 1 . 8 . . 4 2 26 4 1 23 1 2 10 3 19 11 35 10 39 Piercing 24 | . . . . . . . . . . . . . . . . . . . . . . . . . 3 5 13 3 Sneak Attacks 26 | . . . . . 1 3 11 . . . 1 . . . . 1 . . 3 . . . . . . . . 6 Combat Hostiles . | . . . . . . . . . . . . . . . . . . . . . . . . . . . . . Follow-up Attacks 3 | . . . . . . . . . . . . . . . . . . . . . . . . . 1 1 1 . Damage Inflicted 40335 | 102 1113 847 2952 523 1584 484 1326 . . . 170 221 119 . . 111 . . 340 . . 675 . 41 93 161 275 29198 Guns 23897 | 96 717 234 2609 462 1190 . . . . . . . . . . . . . . . . . . . . 24 . 18565 Cannons 533 | . 158 206 . . . . . . . . . . . . . . . . 34 . . . . . 41 . . 94 Explosions 10339 | . 212 388 321 . . . . . . . . 221 119 . . 37 . . . . . . . . . . . 9041 Melee 5369 | . . . . . 388 484 1326 . . . 170 . . . . 74 . . 306 . . 675 . 41 52 137 275 1441 Ramming 197 | 6 26 19 22 61 6 . . . . . . . . . . . . . . . . . . . . . . 57 Kinetic 22948 | . 158 206 2367 462 1190 . . . . . . . . . . . . . . . . . . . . . . 18565 Thermal 687 | 96 237 . 185 . . . . . . . . . . . . . . . 34 . . . . . 41 . . 94 Explosive 9771 | . . 388 223 . . . . . . . . . 119 . . . . . . . . . . . . . . 9041 Electromagnetic 1363 | . 692 234 155 . . . . . . . . 221 . . . 37 . . . . . . . . . 24 . . Impact 2198 | . . . . . 388 484 1326 . . . . . . . . . . . . . . . . . . . . . Slashing 3003 | . . . . . . . . . . . 170 . . . . 74 . . 306 . . 675 . 41 52 89 155 1441 Piercing 168 | . . . . . . . . . . . . . . . . . . . . . . . . . . 48 120 . Highest Corruption 17 | . 1 13 . . . . . . . . . . . 5 . 3 3 3 1 1 1 1 1 . . 3 7 17 Average Corruption 6 | . 1 3 . . . . . . . . . . . 5 . 2 3 3 1 1 1 1 1 . . 2 6 10 Corruption Purged . | . . . . . . . . . . . . . . . . . . . . . . . . . . . . . Corruption Blocked . | . . . . . . . . . . . . . . . . . . . . . . . . . . . . . Effects 177 | . 3 10 . . . . . . . . . . . . . 2 3 1 2 . 2 1 2 . . 1 11 139 Message Errors 34 | . . 2 . . . . . . . . . . . . . . 2 . . . 1 . 1 . . . 2 26 Matter Fused 41 | . 1 3 . . . . . . . . . . . . . . 1 1 . . . . . . . . 1 34 Heat Flow Errors 16 | . . . . . . . . . . . . . . . . . . . . . . . . . . . 3 13 Energy Discharges 17 | . . 1 . . . . . . . . . . . . . 1 . . . . . . . . . . . 15 Parts Rejected 3 | . . . . . . . . . . . . . . . . . . . . . . . . . . . . 3 Parts Fused 3 | . . 1 . . . . . . . . . . . . . . . . 1 . . 1 . . . . . . Data Loss (minor) 24 | . . 3 . . . . . . . . . . . . . 1 . . . . . . . . . . 1 19 Data Loss (major) 7 | . 1 . . . . . . . . . . . . . . . . . 1 . . . . . . 1 1 3 Misfires 4 | . 1 . . . . . . . . . . . . . . . . . . . . . . . . . 2 1 Alerts 3 | . . . . . . . . . . . . . . . . . . . . . 1 . 1 . . . 1 . Misdirections 9 | . . . . . . . . . . . . . . . . . . . . . . . . . . . . 9 Weapon Failures 16 | . . . . . . . . . . . . . . . . . . . . . . . . . . . . 16 Overload Shots 1 | . . . . . . . . . . . . . . . . . . . . . . . . . . . . 1 Overflow Damage 2543 | . . 23 8 . 233 157 663 . . . 69 . 44 . . . . . 106 . . 185 . . 42 48 32 933 Projectiles 32 | . . 5 . . 3 . 20 . . . . . . . . . . . 4 . . . . . . . . . Explosions 532 | . . 18 8 . . . . . . . . . 44 . . . . . . . . . . . . . . 462 Melee 1979 | . . . . . 230 157 643 . . . 69 . . . . . . . 102 . . 185 . . 42 48 32 471 Knockbacks 16 | . . 5 . 1 2 . 8 . . . . . . . . . . . . . . . . . . . . . Impact 9 | . . . . 1 1 . 7 . . . . . . . . . . . . . . . . . . . . . Kinetic 4 | . . 4 . . . . . . . . . . . . . . . . . . . . . . . . . . Secondary 3 | . . 1 . . 1 . 1 . . . . . . . . . . . . . . . . . . . . . Self-Inflicted Damage 201 | . . 36 33 . . . . . . . . 8 124 . . . . . . . . . . . . . . . Shots 7 | . . 2 1 . . . . . . . . 1 3 . . . . . . . . . . . . . . . Rammed 21 | 2 2 5 5 6 1 . . . . . . . . . . . . . . . . . . . . . . . Targets Rammed 30 | 2 4 5 7 7 1 . . . . . . . . . . . . . . . . . . . . . . 4 Kicked 4 | . . . . . . . . . . . . . . . . . . . . . . . . . . . . 4 Crushed 5 | . 2 . 2 1 . . . . . . . . . . . . . . . . . . . . . . . . Highest Temperature 342 | 90 90 90 209 79 342 . 13 . . . 24 96 18 . . 6 150 108 68 64 128 . . 136 240 44 219 239 Average Temperature 42 | 39 24 48 35 28 107 . 13 . . . 4 37 9 . . 4 69 73 21 38 56 . . 63 81 5 118 91 Received Heat Transfer 1840 | . 216 40 483 138 495 72 45 . . . . . . . . 18 . . 9 . . . . . . 21 . 303 Effects 1 | . . . . . 1 . . . . . . . . . . . . . . . . . . . . . . . Energy Bleed 1 | . . . . . 1 . . . . . . . . . . . . . . . . . . . . . . . Siege Activations . | . . . . . . . . . . . . . . . . . . . . . . . . . . . . . Martial Activations . | . . . . . . . . . . . . . . . . . . . . . . . . . . . . . Shielding Activations . | . . . . . . . . . . . . . . . . . . . . . . . . . . . . . Robots Disrupted . | . . . . . . . . . . . . . . . . . . . . . . . . . . . . . Combat Hostiles . | . . . . . . . . . . . . . . . . . . . . . . . . . . . . . Robots Corrupted 16 | . . . . . 5 1 9 . . . . 1 . . . . . . . . . . . . . . . . Combat Hostiles 4 | . . . . . 3 . . . . . . 1 . . . . . . . . . . . . . . . . Parts Fried 22 | . 1 . 1 . 4 2 13 . . . . 1 . . . . . . . . . . . . . . . . Impact Corruptions 33 | . 1 . . . 9 2 21 . . . . . . . . . . . . . . . . . . . . . Robots Melted . | . . . . . . . . . . . . . . . . . . . . . . . . . . . . . Combat Hostiles . | . . . . . . . . . . . . . . . . . . . . . . . . . . . . . Parts Melted 3 | 1 1 . 1 . . . . . . . . . . . . . . . . . . . . . . . . . Heat Transferred 1427 | 408 462 . 359 . . . . . . . . . . . . . . . 50 . . . . . 37 . . 111 Parts Sabotaged . | . . . . . . . . . . . . . . . . . . . . . . . . . . . . . Parts Stolen . | . . . . . . . . . . . . . . . . . . . . . . . . . . . . . Parts Stripped . | . . . . . . . . . . . . . . . . . . . . . . . . . . . . . Power Chain Reactions 7 | . 4 . 1 . . . . . . . . 1 . . . 1 . . . . . . . . . . . . Alert | -11 -10 -10 -9 -9 -8 -8 -8 -8 -6 -6 -6 -6 -6 -6 -5 -5 -5 -5 -4 -4 -4 -4 -3 -3 -3 -2 -2 -2 ------- Run | Yrd Mat Min Mat Min Mat Sto Rec Scr Fac Was Fac Low Low Zio Pro Fac Upp Upp Fac Upp Upp Zhi Pro Res Tes Res Qua Frg Maximum Alert Level 5 | . . . . . 1 2 1 . . . . . . . . . . . . . . . . . . . . 5 Low Security (%) 82 | 100 100 100 100 100 94 61 98 . 100 100 100 . . . . 100 . . 100 . . . . 100 100 100 100 32 Level 1 3 | . . . . . 5 33 1 . . . . . . . . . . . . . . . . . . . . 11 Level 2 . | . . . . . . 5 . . . . . . . . . . . . . . . . . . . . . 3 Level 3 1 | . . . . . . . . . . . . . . . . . . . . . . . . . . . . 5 Level 4 4 | . . . . . . . . . . . . . . . . . . . . . . . . . . . . 18 Level 5 6 | . . . . . . . . . . . . . . . . . . . . . . . . . . . . 28 High Security . | . . . . . . . . . . . . . . . . . . . . . . . . . . . . . Max Security . | . . . . . . . . . . . . . . . . . . . . . . . . . . . . . Peak Influence 2615 | 5 136 90 180 105 216 442 200 . 102 35 36 . . . . 152 . . 96 . . . . 91 143 161 119 2615 Initial 127 | . . 30 . 57 . 79 127 . . 35 . . . . . 18 . . . . . . . 20 40 69 80 36 Average 277 | . 46 16 65 26 117 198 133 . 30 17 6 . . . . 43 . . 34 . . . . 57 101 93 91 969 Influence Increases 9152 | 10 510 104 1124 181 478 668 459 . 131 . 86 105 . . 90 406 . . 259 45 . 5 60 203 184 338 174 3532 Destroy 0b10 Robot/C 4120 | . 300 60 740 140 340 240 60 . 60 . . 80 . . . 20 . . . . . . . . . . . 2080 Destroy 0b10 Robot/NC 380 | 10 35 . 70 5 15 30 65 . . . 5 . . . . 5 . . 10 . . 5 . . 5 5 10 105 Destroy Leader 816 | . 86 10 208 20 90 88 . . 10 . . 10 . . . 2 . . 4 . . . . . . 2 2 284 Allied During Kill 339 | . . . . . 2 203 88 . 46 . . . . . . . . . . . . . . . . . . . Successful Hack 399 | . 4 . 39 . . 23 46 . . . 33 . . . . 58 . . 26 . . . . 12 67 16 51 24 Select Force Hacks 310 | . . . . . . . 180 . . . 30 . . . . 50 . . 50 . . . . . . . . . Disable Machine 570 | . 45 . 30 15 . 15 . . . . 15 . . . . 30 . . 15 . . . . 30 75 30 60 210 Destroy Structure 973 | . 10 34 22 1 1 9 20 . 15 . 3 . . . . 46 . . 34 . . . . 26 22 120 36 574 Partial Spotted 345 | . . . . . 30 45 . . . . . . . . . 15 . . 60 . . . . 15 15 120 15 30 Lose Combat Pursuer 900 | . 30 . 15 . . 15 . . . . . 15 . . 90 180 . . 60 45 . . 60 120 . 45 . 225 Influence Decreases 6538 | 10 433 181 976 329 288 531 670 116 29 102 86 30 75 . 60 292 144 . 178 91 35 5 30 160 133 319 253 982 Entered New Map 941 | . . 47 . 91 . 111 200 116 . 67 . . 15 . . 12 54 . . 31 8 . . 10 33 55 63 28 Time Decay 4267 | 10 433 114 505 238 196 180 440 . 9 10 70 30 40 . 60 168 90 . 174 60 27 5 30 150 100 254 180 694 Lost Part 504 | . . 20 30 . 80 30 30 . . . . . 20 . . 24 . . . . . . . . . 10 . 260 Lost Ally 147 | . . . . . 12 60 . . 20 25 16 . . . . . . . 4 . . . . . . . 10 . Purge Threat 679 | . . . 441 . . 150 . . . . . . . . . 88 . . . . . . . . . . . . Squads Dispatched 72 | . 4 . 4 . 5 3 . . 2 . 6 . . . . 10 . . 11 . . . 2 6 1 5 3 10 Investigation 35 | . 1 . 3 . . . . . 2 . 4 . . . . 7 . . 7 . . . . 4 . 2 . 5 Extermination 13 | . . . . . . . . . . . 1 . . . . 2 . . 3 . . . . 1 1 2 2 1 Reinforcement 17 | . 3 . 1 . 2 1 . . . . 1 . . . . 1 . . 1 . . . . 1 . 1 1 4 Assault 4 | . . . . . . 2 . . . . . . . . . . . . . . . . 2 . . . . . Garrison 3 | . . . . . 3 . . . . . . . . . . . . . . . . . . . . . . . Intercept . | . . . . . . . . . . . . . . . . . . . . . . . . . . . . . Searches Triggered . | . . . . . . . . . . . . . . . . . . . . . . . . . . . . . Construction Impeded . | . . . . . . . . . . . . . . . . . . . . . . . . . . . . . Haulers Reinforced . | . . . . . . . . . . . . . . . . . . . . . . . . . . . . . Active Scanning Responses . | . . . . . . . . . . . . . . . . . . . . . . . . . . . . . Cargo Convoy Interrupts . | . . . . . . . . . . . . . . . . . . . . . . . . . . . . . Stealth | -11 -10 -10 -9 -9 -8 -8 -8 -8 -6 -6 -6 -6 -6 -6 -5 -5 -5 -5 -4 -4 -4 -4 -3 -3 -3 -2 -2 -2 --------- Run | Yrd Mat Min Mat Min Mat Sto Rec Scr Fac Was Fac Low Low Zio Pro Fac Upp Upp Fac Upp Upp Zhi Pro Res Tes Res Qua Frg Distress Signals 20 | . . . 2 . 1 1 . . . . . . . . . 2 . . 1 . . . . . . 3 . 10 Communications Jammed 38 | . . . . . . . . . . . . . . . . . . . . . . . . 3 2 12 2 19 Distress Signals 37 | . . . . . . . . . . . . . . . . . . . . . . . . 3 2 11 2 19 Times Spotted 597 | . 22 22 46 6 25 19 3 . 3 5 5 5 1 . 6 37 5 . 9 2 . . 2 18 4 37 6 309 Peak Tracking Total 13 | . 4 7 4 2 6 11 2 . 3 5 2 4 1 . 5 10 5 . 3 5 . . 3 7 2 12 2 13 Tactical Retreats 44 | . 1 1 1 . . 1 . . . . . 1 . . 2 8 1 . 2 1 . . 2 4 . 6 . 13 ECM-based Alert Blocks 35 | . . . . . . . . . . . . . . . . 16 5 . . . . . . . . 13 . 1 Traps | -11 -10 -10 -9 -9 -8 -8 -8 -8 -6 -6 -6 -6 -6 -6 -5 -5 -5 -5 -4 -4 -4 -4 -3 -3 -3 -2 -2 -2 ------- Run | Yrd Mat Min Mat Min Mat Sto Rec Scr Fac Was Fac Low Low Zio Pro Fac Upp Upp Fac Upp Upp Zhi Pro Res Tes Res Qua Frg Traps Triggered 13 | . 4 . 2 . . . . . 1 . . . . . . 2 . . 1 . . . . . . 1 1 1 Indirectly . | . . . . . . . . . . . . . . . . . . . . . . . . . . . . . Trap Hack Attempts . | . . . . . . . . . . . . . . . . . . . . . . . . . . . . . Triggered . | . . . . . . . . . . . . . . . . . . . . . . . . . . . . . Disarmed . | . . . . . . . . . . . . . . . . . . . . . . . . . . . . . Reprogrammed . | . . . . . . . . . . . . . . . . . . . . . . . . . . . . . Reused . | . . . . . . . . . . . . . . . . . . . . . . . . . . . . . Traps Extracted . | . . . . . . . . . . . . . . . . . . . . . . . . . . . . . Installed . | . . . . . . . . . . . . . . . . . . . . . . . . . . . . . Triggered . | . . . . . . . . . . . . . . . . . . . . . . . . . . . . . Machines | -11 -10 -10 -9 -9 -8 -8 -8 -8 -6 -6 -6 -6 -6 -6 -5 -5 -5 -5 -4 -4 -4 -4 -3 -3 -3 -2 -2 -2 ---------- Run | Yrd Mat Min Mat Min Mat Sto Rec Scr Fac Was Fac Low Low Zio Pro Fac Upp Upp Fac Upp Upp Zhi Pro Res Tes Res Qua Frg Machines Disabled 42 | . 3 . 2 1 . 1 . . . . 1 . . . . 2 . . 1 . . . . 2 5 2 5 17 Max in Single Turn 2 | . 1 . 2 1 . . . . . . 1 . . . . 1 . . 1 . . . . 1 1 1 1 2 Garrison Access 1 | . . . . . . . . . . . . . . . . . . . . . . . . . . . 1 . Machines Repaired . | . . . . . . . . . . . . . . . . . . . . . . . . . . . . . Machines Dismantled . | . . . . . . . . . . . . . . . . . . . . . . . . . . . . . Machines Sabotaged . | . . . . . . . . . . . . . . . . . . . . . . . . . . . . . Overloaded Fab Kills 4 | . . . . . . . . . . . . . . . . 2 . . 2 . . . . . . . . . Hacking | -11 -10 -10 -9 -9 -8 -8 -8 -8 -6 -6 -6 -6 -6 -6 -5 -5 -5 -5 -4 -4 -4 -4 -3 -3 -3 -2 -2 -2 --------- Run | Yrd Mat Min Mat Min Mat Sto Rec Scr Fac Was Fac Low Low Zio Pro Fac Upp Upp Fac Upp Upp Zhi Pro Res Tes Res Qua Frg Machines Accessed 142 | . 4 . 14 . 3 6 12 4 2 . 11 . 1 . . 16 . . 15 . 1 5 1 13 8 10 9 7 Terminals 77 | . 4 . 10 . 1 6 6 . . . 4 . . . . 7 . . 8 . . . 1 8 5 6 7 4 Fabricators 7 | . . . . . . . . . . . 2 . . . . 2 . . 1 . . . . 1 1 . . . Repair Stations 4 | . . . 2 . . . . . . . . . . . . 1 . . 1 . . . . . . . . . Recycling Units 29 | . . . . . . . 6 . 2 . 4 . . . . 4 . . 4 . . . . 4 . 2 . 3 Scanalyzers 10 | . . . 2 . 1 . . . . . 1 . . . . 1 . . 1 . . . . . 2 1 1 . Garrison Access 4 | . . . . . 1 . . . . . . . . . . 1 . . . . . . . . . 1 1 . Total Hacks 377 | . 12 . 53 . 9 16 34 30 3 . 22 . 1 . . 34 . . 35 . 1 19 1 25 26 16 19 21 Successful 197 | . 5 . 34 . 5 8 21 30 2 . 12 . 1 . . 12 . . 15 . 1 19 1 7 8 5 6 5 Failed 175 | . 7 . 18 . 3 8 13 . 1 . 10 . . . . 21 . . 19 . . . . 18 18 10 13 16 Catastrophic 36 | . 1 . . . 1 1 1 . . . 4 . . . . 4 . . 2 . . . . 5 2 5 3 7 Database Lockouts 5 | . . . 1 . 1 . . . . . . . . . . 1 . . 1 . . . . . . 1 . . Manual 168 | . 7 . 19 . 3 4 19 . 3 . 18 . . . . 18 . . 18 . . . . 15 11 3 10 20 Terminals 205 | . 12 . 31 . 3 16 25 . . . 12 . . . . 14 . . 22 . . . 1 17 17 9 14 12 Fabricators 13 | . . . . . . . . . . . 4 . . . . 3 . . 1 . . . . 2 3 . . . Repair Stations 14 | . . . 11 . . . . . . . . . . . . 1 . . 2 . . . . . . . . . Recycling Units 46 | . . . . . . . 9 . 3 . 4 . . . . 7 . . 6 . . . . 6 . 2 . 9 Scanalyzers 42 | . . . 11 . 4 . . . . . 2 . . . . 8 . . 4 . . . . . 6 3 4 . Garrison Access 6 | . . . . . 2 . . . . . . . . . . 1 . . . . . . . . . 2 1 . Terminal Hacks 94 | . 3 . 8 . . 6 11 30 . . 1 . 1 . . 2 . . 4 . 1 19 1 1 3 1 2 . Record 35 | . . . . . . . . 25 . . . . . . . . . . . . . 7 1 1 . . 1 . Part Schematic 6 | . . . . . . . 2 . . . . . . . . . . . . . . 4 . . . . . . Robot Analysis 11 | . . . 1 . . . 2 4 . . . . . . . . . . . . . 4 . . . . . . Prototype ID Bank 10 | . 1 . 2 . . . 2 . . . . . . . . . . . . . . 4 . . 1 . . . Open Door 4 | . . . . . . 2 . . . . . . 1 . . . . . . . 1 . . . . . . . Branch Access Points 3 | . . . . . . 1 . . . . 1 . . . . . . . . . . . . . . 1 . . Terminal Index 3 | . . . . . . . 1 . . . . . . . . . . . 1 . . . . . 1 . . . Alert Level 6 | . . . 2 . . 1 1 . . . . . . . . . . . 1 . . . . . . . 1 . Unreport Threat 5 | . . . 3 . . 1 . . . . . . . . . 1 . . . . . . . . . . . . Locate Traps 2 | . 1 . . . . . . . . . . . . . . 1 . . . . . . . . . . . . Transport Status 2 | . . . . . . . 1 . . . . . . . . . . . 1 . . . . . . . . . Recall Investigation 1 | . . . . . . . . . . . . . . . . . . . 1 . . . . . . . . . Hauler Manifests 1 | . . . . . . . 1 . . . . . . . . . . . . . . . . . . . . . Registered Components 1 | . . . . . . . 1 . . . . . . . . . . . . . . . . . . . . . Zone Layout 2 | . 1 . . . . 1 . . . . . . . . . . . . . . . . . . . . . . Proto ID Catalog 1 | . . . . . . . . 1 . . . . . . . . . . . . . . . . . . . . Protovariant Controls 1 | . . . . . . . . . . . . . . . . . . . . . . . . . 1 . . . Fabricator Hacks 3 | . . . . . . . . . . . 2 . . . . . . . . . . . . . 1 . . . Network Status 2 | . . . . . . . . . . . 1 . . . . . . . . . . . . . 1 . . . Build 1 | . . . . . . . . . . . 1 . . . . . . . . . . . . . . . . . Repair Station Hacks 8 | . . . 8 . . . . . . . . . . . . . . . . . . . . . . . . . Scan Component 4 | . . . 4 . . . . . . . . . . . . . . . . . . . . . . . . . Repair 4 | . . . 4 . . . . . . . . . . . . . . . . . . . . . . . . . Recycling Unit Hacks 1 | . . . . . . . 1 . . . . . . . . . . . . . . . . . . . . . Retrieve Components 1 | . . . . . . . 1 . . . . . . . . . . . . . . . . . . . . . Scanalyzer 21 | . . . 8 . 3 . . . . . 1 . . . . 3 . . 1 . . . . . 2 2 1 . Insert Component 1 | . . . 1 . . . . . . . . . . . . . . . . . . . . . . . . . Analyze 1 | . . . 1 . . . . . . . . . . . . . . . . . . . . . . . . . Retrieve Study 19 | . . . 6 . 3 . . . . . 1 . . . . 3 . . 1 . . . . . 2 2 1 . Garrison Access Hacks 1 | . . . . . . . . . . . . . . . . . . . . . . . . . . . 1 . Seal Access 1 | . . . . . . . . . . . . . . . . . . . . . . . . . . . 1 . Unauthorized Hacks 69 | . 2 . 10 . 2 2 9 . 2 . 8 . . . . 7 . . 10 . . . . 6 2 2 2 5 Terminals 38 | . 2 . 9 . 2 2 3 . . . 4 . . . . 2 . . 5 . . . . 2 2 . 2 3 Track 1 | . . . . . . . . . . . . . . . . . . . 1 . . . . . . . . . Assimilate 3 | . 1 . . . . . . . . . 1 . . . . . . . . . . . . . . . 1 . Botnet 21 | . 1 . 3 . 1 1 2 . . . 1 . . . . 2 . . 3 . . . . 2 2 . 1 2 Operators 4 | . . . 1 . . . . . . . 1 . . . . . . . 1 . . . . . . . . 1 Skim 9 | . . . 5 . 1 1 1 . . . 1 . . . . . . . . . . . . . . . . . Fabricators 2 | . . . . . . . . . . . . . . . . 1 . . 1 . . . . . . . . . Overload 2 | . . . . . . . . . . . . . . . . 1 . . 1 . . . . . . . . . Repair Stations 3 | . . . 1 . . . . . . . . . . . . 1 . . 1 . . . . . . . . . Mechanics 1 | . . . 1 . . . . . . . . . . . . . . . . . . . . . . . . . Patch 2 | . . . . . . . . . . . . . . . . 1 . . 1 . . . . . . . . . Recycling Units 26 | . . . . . . . 6 . 2 . 4 . . . . 3 . . 3 . . . . 4 . 2 . 2 Tunnel 7 | . . . . . . . 6 . . . 1 . . . . . . . . . . . . . . . . . Fedlink 19 | . . . . . . . . . 2 . 3 . . . . 3 . . 3 . . . . 4 . 2 . 2 Scanalyzers . | . . . . . . . . . . . . . . . . . . . . . . . . . . . . . Garrison Access . | . . . . . . . . . . . . . . . . . . . . . . . . . . . . . Data Cores Recovered 1 | . . . . . . . . . . . . . . . . . . . . . . . . . 1 . . . Used 1 | . . . . . . . . . . . . . . . . . . . . . . . . . 1 . . . Hacking Detections 100 | . 4 . 13 . 3 7 6 . 1 . 8 . . . . 11 . . 11 . . . . 10 8 6 7 5 Full Trace Events 8 | . 1 . 1 . . . 1 . . . . . . . . 2 . . 1 . . . . . . . . 2 Feedback Events . | . . . . . . . . . . . . . . . . . . . . . . . . . . . . . Feedback Blocked . | . . . . . . . . . . . . . . . . . . . . . . . . . . . . . Robot Schematics Acquired . | . . . . . . . . . . . . . . . . . . . . . . . . . . . . . Robots Built . | . . . . . . . . . . . . . . . . . . . . . . . . . . . . . Authchips . | . . . . . . . . . . . . . . . . . . . . . . . . . . . . . Time . | . . . . . . . . . . . . . . . . . . . . . . . . . . . . . Total Robot Build Rating . | . . . . . . . . . . . . . . . . . . . . . . . . . . . . . Part Schematics Acquired 7 | . . . 1 . . . 2 . . . . . . . . . . . . . . 4 . . . . . . Parts Built 2 | . . . . . . . . . . . 2 . . . . . . . . . . . . . . . . . Authchips . | . . . . . . . . . . . . . . . . . . . . . . . . . . . . . Time 47 | . . . . . . . . . . . 47 . . . . . . . . . . . . . . . . . Total Part Build Rating 10 | . . . . . . . . . . . 10 . . . . . . . . . . . . . . . . . Part Studies Acquired 16 | . . . 4 . 2 . . . . . 1 . . . . 3 . . 1 . . . . . 2 2 1 . Parts Repaired 4 | . . . 4 . . . . . . . . . . . . . . . . . . . . . . . . . Time 134 | . . . 134 . . . . . . . . . . . . . . . . . . . . . . . . . Parts Recycled . | . . . . . . . . . . . . . . . . . . . . . . . . . . . . . Recycled Matter . | . . . . . . . . . . . . . . . . . . . . . . . . . . . . . Retrieved Matter . | . . . . . . . . . . . . . . . . . . . . . . . . . . . . . Retrieved Components 7 | . . . . . . . 7 . . . . . . . . . . . . . . . . . . . . . Parts Scanalyzed 1 | . . . 1 . . . . . . . . . . . . . . . . . . . . . . . . . Part Schematics Acquired 1 | . . . 1 . . . . . . . . . . . . . . . . . . . . . . . . . Parts Damaged . | . . . . . . . . . . . . . . . . . . . . . . . . . . . . . Bothacking | -11 -10 -10 -9 -9 -8 -8 -8 -8 -6 -6 -6 -6 -6 -6 -5 -5 -5 -5 -4 -4 -4 -4 -3 -3 -3 -2 -2 -2 ------------ Run | Yrd Mat Min Mat Min Mat Sto Rec Scr Fac Was Fac Low Low Zio Pro Fac Upp Upp Fac Upp Upp Zhi Pro Res Tes Res Qua Frg Used RIF Installer . | . . . . . . . . . . . . . . . . . . . . . . . . . . . . . Robots Hacked . | . . . . . . . . . . . . . . . . . . . . . . . . . . . . . Non-combat . | . . . . . . . . . . . . . . . . . . . . . . . . . . . . . Combat . | . . . . . . . . . . . . . . . . . . . . . . . . . . . . . Robot Hacks Applied . | . . . . . . . . . . . . . . . . . . . . . . . . . . . . . Relay Couplers Released . | . . . . . . . . . . . . . . . . . . . . . . . . . . . . . Fabnet Peak Effective % . | . . . . . . . . . . . . . . . . . . . . . . . . . . . . . Robots Rewired 9 | . . . . . . . 8 . . . . . . . . . . . 1 . . . . . . . . . Allies Hacked . | . . . . . . . . . . . . . . . . . . . . . . . . . . . . . Hacks Repelled . | . . . . . . . . . . . . . . . . . . . . . . . . . . . . . Allies | -11 -10 -10 -9 -9 -8 -8 -8 -8 -6 -6 -6 -6 -6 -6 -5 -5 -5 -5 -4 -4 -4 -4 -3 -3 -3 -2 -2 -2 -------- Run | Yrd Mat Min Mat Min Mat Sto Rec Scr Fac Was Fac Low Low Zio Pro Fac Upp Upp Fac Upp Upp Zhi Pro Res Tes Res Qua Frg Total Allies 26 | . . . . 3 . 12 8 . . . 1 . . . . . . . 1 . . . . . . . 1 . Largest Group 15 | . . . . 3 3 10 15 14 14 2 5 1 . . . . . . 1 . . . . . . . 1 . Highest-Rated Group 281 | . . . . 40 40 203 281 271 271 22 87 10 . . . . . . 64 . . . . . . . 45 . Highest-Rated Ally 64 | . . . . 16 16 31 34 34 34 16 31 10 . . . . . . 64 . . . . . . . 45 . Total Orders 3 | . . . . . . . 1 2 . . . . . . . . . . . . . . . . . . . . STAY 1 | . . . . . . . . 1 . . . . . . . . . . . . . . . . . . . . FOLLOW 1 | . . . . . . . . 1 . . . . . . . . . . . . . . . . . . . . TUNNEL 1 | . . . . . . . 1 . . . . . . . . . . . . . . . . . . . . . Ally Attacks 152 | . . . . . 12 84 21 . 26 6 3 . . . . . . . . . . . . . . . . . Total Damage 2598 | . . . . . 142 1150 258 . 937 89 22 . . . . . . . . . . . . . . . . . Kills 23 | . . . . . 1 13 4 . 5 . . . . . . . . . . . . . . . . . . . Allies Corrupted . | . . . . . . . . . . . . . . . . . . . . . . . . . . . . . Allies Melted 3 | . . . . . . . . . . . . . . . . . . . . . . . . . . . . 3 Intel | -11 -10 -10 -9 -9 -8 -8 -8 -8 -6 -6 -6 -6 -6 -6 -5 -5 -5 -5 -4 -4 -4 -4 -3 -3 -3 -2 -2 -2 ------- Run | Yrd Mat Min Mat Min Mat Sto Rec Scr Fac Was Fac Low Low Zio Pro Fac Upp Upp Fac Upp Upp Zhi Pro Res Tes Res Qua Frg Active Infowar (turns) 12349 | 99 1497 375 535 155 349 367 464 644 37 50 217 292 206 339 132 451 452 101 576 228 111 108 115 315 212 544 366 3012 Optics 3258 | . . . . . . . . 644 37 50 191 . . . . . . . . . . . . . . . . 2336 Sensors 5230 | . . . . 1 . . . . . . 209 292 206 339 125 315 452 101 553 220 111 108 115 315 212 544 364 648 Terrain 3500 | . . . . . . . . . . . . . . . . 328 393 101 430 186 111 107 115 314 212 391 316 496 Seismic 3840 | 99 1497 375 535 154 349 367 464 . . . . . . . . . . . . . . . . . . . . . Cloaking 94 | . . . . . . . . . . . . . . . . . . . 7 . . . . . . 34 2 51 Jamming 2130 | . . . . . . . . . . . . . . . . . . . 119 41 . . . 305 212 544 366 543 ECM 430 | . . . . . . . . . . . . . . 27 7 176 58 . . . . . . 1 . 108 . 53 Robot Analysis Total 11 | . . . 1 . . . 2 4 . . . . . . . . . . . . . 4 . . . . . . Derelict Logs Recovered 16 | . . 2 . 3 . . . . . . . 2 1 2 1 . 2 1 . 1 1 . . . . . . . Drone Launches . | . . . . . . . . . . . . . . . . . . . . . . . . . . . . . Drone Recoveries . | . . . . . . . . . . . . . . . . . . . . . . . . . . . . . Exploration | -11 -10 -10 -9 -9 -8 -8 -8 -8 -6 -6 -6 -6 -6 -6 -5 -5 -5 -5 -4 -4 -4 -4 -3 -3 -3 -2 -2 -2 ------------- Run | Yrd Mat Min Mat Min Mat Sto Rec Scr Fac Was Fac Low Low Zio Pro Fac Upp Upp Fac Upp Upp Zhi Pro Res Tes Res Qua Frg Turns Passed 16609 | 188 1606 625 2299 922 526 371 1095 785 37 50 322 294 206 348 132 483 452 101 576 228 111 108 115 315 212 544 366 3192 Spaces Moved 19917 | 90 859 287 1072 532 309 373 868 1471 92 111 646 1087 685 863 332 1145 727 270 1329 438 306 201 277 748 439 1052 763 2545 Core 17 | 6 1 . . . . 10 . . . . . . . . . . . . . . . . . . . . . . Treads 2933 | 84 858 287 1072 532 100 . . . . . . . . . . . . . . . . . . . . . . . Legs 1607 | . . . . . . . . . . . . . . . . . . . . . . . . . . . . 1607 Wheels . | . . . . . . . . . . . . . . . . . . . . . . . . . . . . . Hover 1285 | . . . . . 209 363 713 . . . . . . . . . . . . . . . . . . . . . Flight 14075 | . . . . . . . 155 1471 92 111 646 1087 685 863 332 1145 727 270 1329 438 306 201 277 748 439 1052 763 938 Fastest Speed 23 | 50 160 160 160 160 53 53 26 26 26 26 23 23 23 26 26 25 31 31 28 31 31 31 31 31 33 28 28 28 Average Speed 56 | 152 160 160 160 160 87 56 77 26 26 26 25 23 28 28 26 27 31 31 31 31 31 31 31 32 33 28 28 72 Slowest Speed 550 | 160 550 240 200 160 162 121 150 29 26 26 26 23 29 186 26 109 31 31 115 32 31 31 31 33 33 31 28 170 Overloaded Moves . | . . . . . . . . . . . . . . . . . . . . . . . . . . . . . Propulsion Burnouts . | . . . . . . . . . . . . . . . . . . . . . . . . . . . . . Robots Hopped 70 | . . . . . . . . . . . 6 . . . 1 9 . . 16 . . . . 2 3 19 5 9 Potential Cave-ins 16 | . . . . . . . . . . . . . . . . . . . . . . . . . . . 3 13 Cave-ins Triggered . | . . . . . . . . . . . . . . . . . . . . . . . . . . . . . Teleports 1 | . . . . . . . . . . . . . . . . . . . . . . . . . . 1 . . Exploration Rate (%) 59 | 4 96 57 95 99 37 48 99 92 3 80 19 96 77 86 67 34 84 29 34 69 54 62 46 24 60 33 84 53 Regions Visited 28 Branch Regions 18 Pre-discovered Areas 25 | . . . 3 2 . . 6 4 1 . 1 . . 3 . . 1 . . 1 . 3 . . . . . . Known Exits Taken 21 | . . . 1 1 . 1 . 1 . . 1 1 1 1 1 1 1 1 1 1 1 1 1 1 1 1 1 . Unknown Exits Taken 5 | 1 1 1 . . 1 . 1 . . . . . . . . . . . . . . . . . . . . . Scrap Searched 32 | . . 1 . 2 . . . 8 . . . 5 4 3 1 . 3 1 . 3 1 . . . . . . . Spaces Dug 213 | . . 10 . . . 7 3 . 1 . 3 . . 1 2 23 5 2 17 2 5 . 3 13 8 44 16 48 Terrain Destroyed 526 | . 10 53 16 . . 8 3 . 1 . 3 7 27 1 2 23 5 3 17 2 5 . 3 13 10 44 18 252 Melee 146 | . . . . . . 7 3 . 1 . 3 . . 1 2 23 4 1 15 1 2 . 3 13 7 31 10 19 Projectile 219 | . . . . . . 1 . . . . . . . . . . 1 2 2 1 3 . . . 3 13 8 185 AOE 161 | . 10 53 16 . . . . . . . . 7 27 . . . . . . . . . . . . . . 48 Terrain Rammed . | . . . . . . . . . . . . . . . . . . . . . . . . . . . . . Walls Destroyed . | . . . . . . . . . . . . . . . . . . . . . . . . . . . . . Machines Disabled . | . . . . . . . . . . . . . . . . . . . . . . . . . . . . . Actions | -11 -10 -10 -9 -9 -8 -8 -8 -8 -6 -6 -6 -6 -6 -6 -5 -5 -5 -5 -4 -4 -4 -4 -3 -3 -3 -2 -2 -2 --------- Run | Yrd Mat Min Mat Min Mat Sto Rec Scr Fac Was Fac Low Low Zio Pro Fac Upp Upp Fac Upp Upp Zhi Pro Res Tes Res Qua Frg Total 23626 | 120 993 397 1447 570 451 498 1249 1868 103 131 778 1125 698 953 369 1260 929 283 1422 523 316 236 302 800 482 1221 862 3240 Wait 2037 | 5 15 48 191 7 54 83 248 381 9 19 109 25 . 62 33 61 169 6 26 70 4 18 23 16 23 110 53 169 Move 19758 | 89 858 286 1071 531 308 372 867 1470 92 110 634 1086 684 862 329 1126 726 269 1297 437 305 200 276 743 432 1016 752 2530 Hop 62 | . . . . . . . . . . . 5 . . . 1 9 . . 15 . . . . 2 3 16 5 6 Pick Up 140 | 6 23 2 20 3 9 1 3 6 . 1 4 3 3 2 . 7 3 1 8 2 1 2 . 5 . 3 2 20 Fast Attach 86 | 6 4 1 9 . 3 4 3 2 . . 1 . . 6 . 7 1 . 3 2 . 3 . 2 1 . 2 26 Attach 85 | 1 . 8 5 1 12 3 1 . 1 . 3 1 1 5 . 9 2 . 3 . . . . 2 . 3 3 21 Detach 42 | . . . 2 . 3 4 1 1 . . 2 1 1 4 . 4 1 . 1 . . . . 1 . . 4 12 Swap 216 | 1 18 5 24 5 5 7 6 1 . . 4 2 1 2 4 6 4 2 22 7 . 1 . 6 2 16 9 56 Drop 156 | . 19 . 18 3 3 4 3 7 . 1 2 2 5 6 . 5 2 2 14 3 1 4 . 6 2 2 5 37 Fire 605 | 10 52 42 100 13 39 1 . . . . 6 5 3 . . 1 17 2 3 1 3 . . 2 8 14 8 275 Melee 254 | . . . . . 14 19 20 . 1 . 8 . . 4 2 25 4 1 23 1 2 8 3 15 11 35 19 39 Ram . | . . . . . . . . . . . . . . . . . . . . . . . . . . . . . Kick 4 | . . . . . . . . . . . . . . . . . . . . . . . . . . . . 4 Crush 26 | 2 4 5 7 7 1 . . . . . . . . . . . . . . . . . . . . . . . Escape Stasis 21 | . . . . . . . . . . . . . . . . . . . . . . . . . . 6 . 15 Rewire 104 | . . . . . . . 97 . . . . . . . . . . . 7 . . . . . . . . . Trap . | . . . . . . . . . . . . . . . . . . . . . . . . . . . . . Miscellaneous 30 | . . . . . . . . . . . . . . . . . . . . . . . . . . . . 30 Route ------- -11/Scrapyard -10/Materials (discovered 4 exits: *Mat x3 / [*Min]) -10/Mines (discovered 4 exits: *Mat x2 / Exi / Sub) -9/Materials (discovered 4 exits: *Mat x3 / *Min) -9/Mines (discovered 2 exits: *Mat x2) -8/Materials (discovered 3 exits: *Fac x2 / *Sto) -8/Storage -8/Recycling (discovered 2 exits: *Fac / *Scr) -8/Scraptown (discovered 2 exits: *Fac x2) -6/Factory (discovered 5 exits: Fac x3 / Low / Ext) -6/Waste -6/Factory (discovered 4 exits: *Low x2 / Ext x2) -6/Lower Caves (discovered 2 exits: *Low / *Zio) -6/Lower Caves -6/Zion -5/Proximity Caves -5/Factory (discovered 2 exits: Fac / *Upp) -5/Upper Caves -5/Upper Caves -4/Factory (discovered 4 exits: *Res x3 / *Upp) -4/Upper Caves -4/Upper Caves (discovered 2 exits: *Res / *Zhi) -4/Zhirov -3/Proximity Caves -3/Research (discovered 2 exits: Arm / *Tes) -3/Testing -2/Research (discovered 4 exits: *Acc x2 / *Qua x2) -2/Quarantine (discovered 3 exits: Acc / *Sec / *Frg) -2/Protoforge (discovered 1 exit: *Acc) History --------- Turn | Location | Event 5 | -11/Scrapyard | Discovered new exit (range 14) 189 | -11/Scrapyard | Entered Materials 301 | -10/Materials | Build established: Mutant 656 | -10/Materials | Discovered new exit (range 18) 849 | -10/Materials | Discovered new exit (range 8) 1241 | -10/Materials | Discovered new exit (range 13) 1410 | -10/Materials | Discovered new exit (range 16) 1795 | -10/Materials | Entered Mines 1803 | -10/Mines | Met a Derelict bent on vengeance 1805 | -10/Mines | Discovered new exit (range 10) 2108 | -10/Mines | Assembled infested the area 2113 | -10/Mines | Assisted by a Guerilla fighting off Assembled 2122 | -10/Mines | Identified exit to Exiles 2301 | -10/Mines | Destroyed 10 combat bots 2304 | -10/Mines | Core integrity fell below 50% 2309 | -10/Mines | Core integrity fell below 20% 2328 | -10/Mines | System corruption reached 10% 2358 | -10/Mines | Lost 8 parts (1p3n4w) 2376 | -10/Mines | Discovered new exit (range 11) 2412 | -10/Mines | Identified exit to Subcaves 2420 | -10/Mines | Entered Materials 2420 | -9/Materials | Evolved 2 slots: Propulsion x1, Weapon x1 2973 | -9/Materials | Discovered new exit (range 9) 3262 | -9/Materials | Identified exit to Materials 3262 | -9/Materials | Identified exit to Mines 3359 | -9/Materials | Build established: Tank 3362 | -9/Materials | Learned location of 1 exit from Storage 3399 | -9/Materials | Learned location of Recycling (-8) 3428 | -9/Materials | Learned location of Zion (-6) 3649 | -9/Materials | Repaired Imp. Heat Sink 3676 | -9/Materials | Repaired Ion Engine 4513 | -9/Materials | Repaired Imp. Treads+ 4552 | -9/Materials | Repaired Hrd. Medium Armor Plating? 4651 | -9/Materials | Central database locked down 4719 | -9/Materials | Entered Mines 4731 | -9/Mines | Learned 2 Materials zone layouts 4758 | -9/Mines | Discovered exit to Materials (range 10) 5198 | -9/Mines | Learned location of Storage (-8) 5250 | -9/Mines | Assisted by bots powering up and referring to "LRC-V3" 5541 | -9/Mines | Found a damaged Exp. Sensor Array with a note attached 5548 | -9/Mines | Found Prototype Device 5575 | -9/Mines | Identified Exp. Sensor Array 5641 | -9/Mines | Entered Materials 5641 | -8/Materials | Accompanied by 3 allies 5641 | -8/Materials | Evolved 2 slots: Propulsion x1, Utility x1 5642 | -8/Materials | Identified exit to Factory 5782 | -8/Materials | Lost 3 allies 5901 | -8/Materials | Garrison activated, responded to threat 6031 | -8/Materials | Lost 7 parts (4n1u2w) 6108 | -8/Materials | Central database locked down 6115 | -8/Materials | Discovered new exit (range 15) 6153 | -8/Materials | Discovered exit to Factory (range 3) 6167 | -8/Materials | Entered Storage 6168 | -8/Storage | Identified exit to Recycling 6241 | -8/Storage | Assisted by bots powering up and referring to "LRC-V3" 6467 | -8/Storage | Met a pair of Derelict thieves 6493 | -8/Storage | Used back door to open Recycling access 6526 | -8/Storage | Build established: Commander-Mutant 6538 | -8/Storage | Entered Recycling 6538 | -8/Recycling | Accompanied by 7 allies 7062 | -8/Recycling | Discovered new exit (range 16) 7401 | -8/Recycling | Scanned before Scraplab entrance 7404 | -8/Recycling | Entered Scraplab 7407 | -8/Recycling | Discovered new exit (range 3) 7633 | -8/Recycling | Entered Scraptown 7633 | -8/Scraptown | Accompanied by 14 allies 7685 | -8/Scraptown | Build established: Commander-Sprinter 7720 | -8/Scraptown | Discovered new exit (range 13) 7733 | -8/Scraptown | Heard Great Nut preacher, LISTEN AND RECITE! 7758 | -8/Scraptown | Visited Bundlers 7785 | -8/Scraptown | Visited Red Mages 7801 | -8/Scraptown | Visited SPCMW 7836 | -8/Scraptown | Visited IN-MT5's Study 7845 | -8/Scraptown | Visited Junk Repository 7854 | -8/Scraptown | Visited CPS Storage 7855 | -8/Scraptown | Visited Cyclists 7880 | -8/Scraptown | Visited UFD Registry 7934 | -8/Scraptown | Registered with UFD as "Shocklauncher" 7943 | -8/Scraptown | Visited Cartography Club 7949 | -8/Scraptown | Found Surveybot 17 Chip 7980 | -8/Scraptown | Learned location of Upper Caves (-5) 7980 | -8/Scraptown | Learned 12 Materials zone layouts 7980 | -8/Scraptown | Learned 8 Factory zone layouts 7980 | -8/Scraptown | Learned 24 Factory zone layouts 7980 | -8/Scraptown | Learned 4 Storage zone layouts 7980 | -8/Scraptown | Learned 12 Proximity Caves zone layouts 7980 | -8/Scraptown | Learned 16 Proximity Caves zone layouts 7980 | -8/Scraptown | Learned 4 Armory zone layouts 7980 | -8/Scraptown | Learned Research emergency access door positions 7980 | -8/Scraptown | Learned location of 2 exits from Upper Caves 7980 | -8/Scraptown | Learned location of 2 exits from Proximity Caves 7980 | -8/Scraptown | Identified exit to Factory 8008 | -8/Scraptown | Visited A0-MCA Data Center 8009 | -8/Scraptown | Given a C rating by A0-MCA 8012 | -8/Scraptown | Found A0-MCA's Component Scanner 8019 | -8/Scraptown | Visited Supply Room 8041 | -8/Scraptown | Visited Science Guys 8048 | -8/Scraptown | Visited Junk Repository 8055 | -8/Scraptown | Visited Scrap Suit Storage 8091 | -8/Scraptown | Visited Supply Room 8095 | -8/Scraptown | Visited LU-1G1's Boring Crew 8098 | -8/Scraptown | Visited Analyses Database 8104 | -8/Scraptown | Visited Curators Association 8351 | -8/Scraptown | Met Optimus 8351 | -8/Scraptown | Accepted into 0bPrime 8418 | -8/Scraptown | Entered Factory 8418 | -6/Factory | Accompanied by 14 allies 8418 | -6/Factory | Evolved 4 slots: Power x1, Propulsion x2, Utility x1 8419 | -6/Factory | Identified exit to Factory 8420 | -6/Factory | Identified exit to Extension 8420 | -6/Factory | Identified exit to Lower Caves 8443 | -6/Factory | Loaded intel: 8 recycling unit locations 8452 | -6/Factory | Learned location of Protoforge (-2) 8455 | -6/Factory | Sucked down chute 8455 | -6/Factory | Entered Waste 8458 | -6/Waste | Spotted C-40 Crusher 8463 | -6/Waste | Spotted C-40 Crusher 8464 | -6/Waste | Spotted C-40 Crusher 8469 | -6/Waste | Spotted C-40 Crusher 8469 | -6/Waste | Spotted C-40 Crusher 8469 | -6/Waste | Discovered new exit (range 20) 8469 | -6/Waste | Spotted C-40 Crusher 8475 | -6/Waste | Lost 3 allies 8505 | -6/Waste | Entered Factory 8512 | -6/Factory | Loaded intel: 8 recycling unit locations 8563 | -6/Factory | Fabricated Adv. Melee Analysis Suite? 8565 | -6/Factory | 1 allies followed down the chute 8705 | -6/Factory | 8 allies followed down the chute 8827 | -6/Factory | Entered Lower Caves 8827 | -6/Lower Caves | Accompanied by 1 ally 8844 | -6/Lower Caves | Learned 4 Factory zone layouts 8895 | -6/Lower Caves | Encountered a Warlord checkpoint 8979 | -6/Lower Caves | A Derelict revealed a hidden shortcut to a safe place 9043 | -6/Lower Caves | Identified exit to Zion 9084 | -6/Lower Caves | Discovered new exit (range 14) 9090 | -6/Lower Caves | Build established: Sprinter 9121 | -6/Lower Caves | Identified exit to Lower Caves 9121 | -6/Lower Caves | Entered another Lower Caves area 9172 | -6/Lower Caves | Encountered a Warlord checkpoint 9209 | -6/Lower Caves | Learned Factory emergency access door positions 9211 | -6/Lower Caves | Entered a destroyed Warlord outpost 9295 | -6/Lower Caves | Discovered exit to Zion (range 12) 9327 | -6/Lower Caves | Entered Zion 9359 | -6/Zion | Discovered new exit (range 12) 9373 | -6/Zion | System corruption cleaned by Quarantine Array 9399 | -6/Zion | Learned Factory garrison access intel 9425 | -6/Zion | Learned Factory emergency access door positions 9428 | -6/Zion | Learned location of Quarantine (-2) 9475 | -6/Zion | Turned away by Imprinter 9500 | -6/Zion | Learned 8 Factory zone layouts 9506 | -6/Zion | Given the Hacking Drone Bay 9513 | -6/Zion | Given A8's code to call for help 9582 | -6/Zion | Visited the Megawrench Repair Shop 9582 | -6/Zion | Megawrench repaired 10 parts 9638 | -6/Zion | Identified exit to Proximity Caves 9675 | -6/Zion | Entered Proximity Caves 9716 | -5/Proximity Caves | Learned Factory terminal intel 9807 | -5/Proximity Caves | Entered Factory 9807 | -5/Factory | Evolved 2 slots: Utility x2 9808 | -5/Factory | Identified exit to Upper Caves 9809 | -5/Factory | Identified exit to Factory 9811 | -5/Factory | Loaded intel: 26 terminal locations 9812 | -5/Factory | Loaded intel: 3 garrison access locations 9938 | -5/Factory | Loaded intel: 8 recycling unit locations 10256 | -5/Factory | Central database locked down 10290 | -5/Factory | Entered Upper Caves 10291 | -5/Upper Caves | Identified exit to Upper Caves 10308 | -5/Upper Caves | Learned location of Warlord (-5) 10664 | -5/Upper Caves | Found Alien Artifact 10664 | -5/Upper Caves | Identified Core Expander 10664 | -5/Upper Caves | Installed Core Expander, added new Weapon slot 10719 | -5/Upper Caves | Learned Factory terminal intel 10742 | -5/Upper Caves | Entered another Upper Caves area 10756 | -5/Upper Caves | Learned Factory stockpile data 10772 | -5/Upper Caves | Build established: Scout 10843 | -5/Upper Caves | Entered Factory 10843 | -4/Factory | Evolved 2 slots: Propulsion x1, Utility x1 10844 | -4/Factory | Identified exit to Research 10847 | -4/Factory | Loaded intel: 25 terminal locations 10897 | -4/Factory | Loaded intel: 8 recycling unit locations 11099 | -4/Factory | Central database locked down 11350 | -4/Factory | Discovered new exit (range 16) 11355 | -4/Factory | Identified exit to Upper Caves 11382 | -4/Factory | Spotted B-86 Titan 11419 | -4/Factory | Entered Upper Caves 11428 | -4/Upper Caves | Found DCF Scrap (13 items) 11613 | -4/Upper Caves | Attracted the attention of an 0b10 checkpoint 11628 | -4/Upper Caves | Discovered new exit (range 24) 11646 | -4/Upper Caves | Identified exit to Upper Caves 11647 | -4/Upper Caves | Entered another Upper Caves area 11649 | -4/Upper Caves | Discovered exit to Research (range 13) 11722 | -4/Upper Caves | Discovered new exit (range 12) 11725 | -4/Upper Caves | Identified exit to Zhirov 11758 | -4/Upper Caves | Entered Zhirov 11758 | -4/Zhirov | Discovered new exit (range 3) 11764 | -4/Zhirov | Met Zhirov 11774 | -4/Zhirov | Learned location of Testing (-3) 11774 | -4/Zhirov | Learned location of Command (-1) 11777 | -4/Zhirov | Zhirov requested help retrieving the SGEMP Prototype 11782 | -4/Zhirov | Found Alien Artifact 11782 | -4/Zhirov | Identified Integrated Reactor 11782 | -4/Zhirov | Installed Integrated Reactor, increased core energy generation (+10) 11788 | -4/Zhirov | Found Alien Artifact 11865 | -4/Zhirov | Identified exit to Proximity Caves 11866 | -4/Zhirov | Entered Proximity Caves 11877 | -3/Proximity Caves | Derelict sapper outpost attacked 11882 | -3/Proximity Caves | Encountered a Derelict sapper outpost 11981 | -3/Proximity Caves | Entered Research 11981 | -3/Research | Evolved 2 slots: Utility x2 11982 | -3/Research | Identified exit to Armory 12063 | -3/Research | Found Gamma Bomb Array 12068 | -3/Research | Loaded intel: 5 recycling unit locations 12138 | -3/Research | Discovered new exit (range 22) 12285 | -3/Research | Build established: Ninja 12296 | -3/Research | Identified exit to Testing 12296 | -3/Research | Entered Testing 12357 | -3/Testing | Found Tachyon Dispersion Ray 12374 | -3/Testing | Found Cld. Nova Cannon 12480 | -3/Testing | Discovered new exit (range 9) 12483 | -3/Testing | Identified exit to Research 12508 | -3/Testing | Entered Research 12508 | -2/Research | Evolved 2 slots: Propulsion x1, Utility x1 12509 | -2/Research | Identified exit to Access 12519 | -2/Research | Identified exit to Quarantine 12683 | -2/Research | Loaded intel: 5 recycling unit locations 12744 | -2/Research | Spotted B-90 Cyclops 12775 | -2/Research | Central database locked down 13041 | -2/Research | Identified Transdimensional Reconstructor 13041 | -2/Research | Warped through subspace 13049 | -2/Research | Spotted B-90 Cyclops 13052 | -2/Research | Entered Quarantine 13071 | -2/Quarantine | Found Alien Energy Cannon 13071 | -2/Quarantine | Identified Core Cannon 13106 | -2/Quarantine | Found Point Singularity Launcher 13160 | -2/Quarantine | Discovered exit to Access (range 24) 13301 | -2/Quarantine | Found Alien Slashing Weapon 13301 | -2/Quarantine | Identified Sigix Broadsword 13322 | -2/Quarantine | Build established: Scientist-Ninja 13335 | -2/Quarantine | Found Alien Reactor 13335 | -2/Quarantine | Identified Matter Drive 13392 | -2/Quarantine | Spotted Fortress 13415 | -2/Quarantine | Discovered new exit (range 7) 13415 | -2/Quarantine | Discovered new exit (range 6) 13416 | -2/Quarantine | Identified exit to Protoforge 13417 | -2/Quarantine | Identified exit to Section 7 13418 | -2/Quarantine | Entered Protoforge 13451 | -2/Protoforge | Superfortress began startup sequence 13504 | -2/Protoforge | Discovered exit to Access (range 22) 13685 | -2/Protoforge | Spotted AP7-3 13857 | -2/Protoforge | Spotted EXE-6 13857 | -2/Protoforge | Spotted EXE-6 13870 | -2/Protoforge | Spotted SKR-2 13870 | -2/Protoforge | Spotted SKR-2 13870 | -2/Protoforge | Spotted SKR-2 13882 | -2/Protoforge | UFD initiated attack on Protoforge 13882 | -2/Protoforge | Loaded intel: 3 recycling unit locations 13900 | -2/Protoforge | Destroyed SKR-2 13920 | -2/Protoforge | Optimus greeted in Protoforge 13941 | -2/Protoforge | Found Cep. XC Strikerail 14005 | -2/Protoforge | Forge Plexus network access discovered 14012 | -2/Protoforge | Found Exp. Armor Integrity Analyzer 14016 | -2/Protoforge | Found Cep. XC Strikerail 14018 | -2/Protoforge | Found Exp. Core Analyzer 14029 | -2/Protoforge | Found Exp. Kinecellerator 14035 | -2/Protoforge | Found Exp. Core Analyzer 14058 | -2/Protoforge | Found 0bPrime Scrap Suit 14072 | -2/Protoforge | Destroyed AP7-3 14088 | -2/Protoforge | Found Exp. Targeting Computer 14164 | -2/Protoforge | UFD reported confirmed Drillbomb installation 14207 | -2/Protoforge | Spotted Striker 14215 | -2/Protoforge | Spotted Executioner 14215 | -2/Protoforge | Spotted Striker 14219 | -2/Protoforge | Destroyed Striker 14222 | -2/Protoforge | Spotted Striker 14233 | -2/Protoforge | UFD reported confirmed Drillbomb installation 14240 | -2/Protoforge | System corruption reached 10% 14275 | -2/Protoforge | Spotted Hotshot 14275 | -2/Protoforge | Spotted Hotshot 14275 | -2/Protoforge | Spotted Hotshot 14286 | -2/Protoforge | Lost 6 allies 14295 | -2/Protoforge | Build established: Scavenger-Mutant 14306 | -2/Protoforge | Spotted Executioner 14333 | -2/Protoforge | Lost 3 allies 14403 | -2/Protoforge | Spotted Executioner 14404 | -2/Protoforge | Spotted Executioner 14413 | -2/Protoforge | Destroyed Executioner 14448 | -2/Protoforge | Spotted Executioner 14458 | -2/Protoforge | Spotted Striker 14461 | -2/Protoforge | Spotted Striker 14471 | -2/Protoforge | Spotted AP7-3 14484 | -2/Protoforge | Spotted Executioner 14487 | -2/Protoforge | Spotted Striker 14513 | -2/Protoforge | Destroyed Striker 14514 | -2/Protoforge | Spotted Striker 14516 | -2/Protoforge | Spotted Striker 14553 | -2/Protoforge | Spotted Striker 14555 | -2/Protoforge | Spotted Striker 14582 | -2/Protoforge | Spotted Striker 14584 | -2/Protoforge | Spotted Striker 14601 | -2/Protoforge | Found Cep. XC Strikerail 14609 | -2/Protoforge | Found UFD Drillbomb 14637 | -2/Protoforge | Lost 18 allies 14665 | -2/Protoforge | Installed UFD Drillbomb at designated target 14665 | -2/Protoforge | UFD reported confirmed Drillbomb installation 14676 | -2/Protoforge | Build established: Scavenger-Gunner 14679 | -2/Protoforge | Spotted Executioner 14680 | -2/Protoforge | Spotted Striker 14681 | -2/Protoforge | Spotted Striker 14688 | -2/Protoforge | Destroyed Striker 14693 | -2/Protoforge | Destroyed Striker 14723 | -2/Protoforge | Spotted Executioner 14770 | -2/Protoforge | Lost 5 allies 14790 | -2/Protoforge | Spotted Executioner 14796 | -2/Protoforge | Spotted Executioner 14860 | -2/Protoforge | Spotted Hotshot 14860 | -2/Protoforge | Spotted Hotshot 14869 | -2/Protoforge | Spotted Executioner 14873 | -2/Protoforge | Destroyed Executioner 14884 | -2/Protoforge | Destroyed Executioner 14887 | -2/Protoforge | Spotted Executioner 14888 | -2/Protoforge | Destroyed Executioner 14892 | -2/Protoforge | Spotted Executioner 14893 | -2/Protoforge | Spotted Striker 14900 | -2/Protoforge | Destroyed Striker 14924 | -2/Protoforge | Lost 14 allies 14927 | -2/Protoforge | Destroyed Executioner 14964 | -2/Protoforge | Destroyed 17 combat bots 15027 | -2/Protoforge | Spotted Hotshot 15027 | -2/Protoforge | Spotted Hotshot 15036 | -2/Protoforge | Spotted Hotshot 15038 | -2/Protoforge | Spotted Hotshot 15041 | -2/Protoforge | Spotted Striker 15042 | -2/Protoforge | Spotted Striker 15050 | -2/Protoforge | Destroyed Striker 15057 | -2/Protoforge | Destroyed Striker 15066 | -2/Protoforge | Spotted Striker 15068 | -2/Protoforge | Spotted Striker 15089 | -2/Protoforge | Destroyed Striker 15120 | -2/Protoforge | Lost 14 allies 15121 | -2/Protoforge | Destroyed 8 combat bots 15137 | -2/Protoforge | Spotted Striker 15138 | -2/Protoforge | Spotted Executioner 15147 | -2/Protoforge | Spotted Executioner 15158 | -2/Protoforge | Destroyed Striker 15174 | -2/Protoforge | Spotted Executioner 15174 | -2/Protoforge | Spotted Executioner 15175 | -2/Protoforge | Spotted Striker 15176 | -2/Protoforge | Core integrity fell below 50% 15210 | -2/Protoforge | Lost 4 parts (1n1u2w) 15247 | -2/Protoforge | Found UFD Drillbomb 15284 | -2/Protoforge | Lost 3 allies 15351 | -2/Protoforge | Installed UFD Drillbomb at designated target 15351 | -2/Protoforge | UFD reported confirmed Drillbomb installation 15398 | -2/Protoforge | Spotted Striker 15405 | -2/Protoforge | Spotted Executioner 15415 | -2/Protoforge | Spotted Executioner 15434 | -2/Protoforge | Destroyed Executioner 15437 | -2/Protoforge | Spotted Executioner 15443 | -2/Protoforge | Spotted Striker 15446 | -2/Protoforge | Spotted Striker 15456 | -2/Protoforge | P-80 Master assimilated allied 02FBP-D 15463 | -2/Protoforge | Lost 3 parts (1n2w) 15473 | -2/Protoforge | Destroyed Striker 15510 | -2/Protoforge | Spotted Executioner 15510 | -2/Protoforge | Spotted Executioner 15512 | -2/Protoforge | Spotted Executioner 15522 | -2/Protoforge | Destroyed Executioner 15524 | -2/Protoforge | Destroyed Executioner 15578 | -2/Protoforge | Spotted Striker 15578 | -2/Protoforge | Spotted Striker 15581 | -2/Protoforge | Destroyed Striker 15589 | -2/Protoforge | Found 0bPrime Scrap Suit 15599 | -2/Protoforge | Found UFD Drillbomb 15606 | -2/Protoforge | Lost 21 allies 15608 | -2/Protoforge | Spotted Executioner 15608 | -2/Protoforge | Spotted Striker 15612 | -2/Protoforge | Destroyed Striker 15649 | -2/Protoforge | Spotted Striker 15652 | -2/Protoforge | Spotted Striker 15713 | -2/Protoforge | Spotted Striker 15733 | -2/Protoforge | Spotted Executioner 15782 | -2/Protoforge | Spotted Executioner 15784 | -2/Protoforge | Spotted Executioner 15786 | -2/Protoforge | Destroyed 02F25-K 15786 | -2/Protoforge | Destroyed Executioner 15793 | -2/Protoforge | Destroyed Executioner 15821 | -2/Protoforge | Lost 3 allies 15828 | -2/Protoforge | Spotted Striker 15838 | -2/Protoforge | Spotted Executioner 15932 | -2/Protoforge | Spotted Striker 15932 | -2/Protoforge | Spotted Striker 15932 | -2/Protoforge | Spotted Executioner 15932 | -2/Protoforge | Installed UFD Drillbomb at designated target 15932 | -2/Protoforge | UFD reported confirmed Drillbomb installation 15933 | -2/Protoforge | Spotted Striker 15939 | -2/Protoforge | Destroyed Executioner 15939 | -2/Protoforge | Destroyed Striker 15941 | -2/Protoforge | Destroyed Striker 15952 | -2/Protoforge | Destroyed Striker 15985 | -2/Protoforge | Spotted Executioner 16011 | -2/Protoforge | Destroyed Executioner 16032 | -2/Protoforge | Destroyed 13 combat bots 16049 | -2/Protoforge | Spotted Executioner 16052 | -2/Protoforge | Destroyed Executioner 16053 | -2/Protoforge | Spotted Striker 16067 | -2/Protoforge | Destroyed Striker 16077 | -2/Protoforge | Core integrity fell below 20% 16120 | -2/Protoforge | Lost 4 parts (1n1u2w) 16165 | -2/Protoforge | Spotted Executioner 16259 | -2/Protoforge | Spotted Striker 16280 | -2/Protoforge | Destroyed Striker 16281 | -2/Protoforge | Spotted Executioner 16281 | -2/Protoforge | Spotted Striker 16304 | -2/Protoforge | Lost 6 allies 16349 | -2/Protoforge | Spotted Immortal 16351 | -2/Protoforge | Spotted Immortal 16355 | -2/Protoforge | Spotted Immortal 16400 | -2/Protoforge | Lost 7 allies 16402 | -2/Protoforge | Spotted Striker 16409 | -2/Protoforge | Spotted Striker 16410 | -2/Protoforge | Spotted Striker 16411 | -2/Protoforge | Spotted Executioner 16428 | -2/Protoforge | Destroyed Striker 16455 | -2/Protoforge | Lost 8 allies 16467 | -2/Protoforge | Spotted Executioner 16467 | -2/Protoforge | Spotted Striker 16469 | -2/Protoforge | Spotted Striker 16479 | -2/Protoforge | Destroyed Executioner 16480 | -2/Protoforge | Spotted Striker 16510 | -2/Protoforge | Found UFD Drillbomb 16533 | -2/Protoforge | Lost 5 allies 16543 | -2/Protoforge | Spotted Executioner 16544 | -2/Protoforge | Spotted Striker 16558 | -2/Protoforge | Destroyed Executioner 16580 | -2/Protoforge | Spotted Striker 16583 | -2/Protoforge | Destroyed Striker 16586 | -2/Protoforge | Spotted Striker 16601 | -2/Protoforge | Spotted Executioner 16605 | -2/Protoforge | Spotted Executioner 16610 | -2/Protoforge | Destroyed by Executioner with Helical Railgun Last Messages --------------- 16601_ N-04 Retriever collects Neutrino Core. 16602_ 0bPrime Scrap Suit cannibalized Ovr. Armored Exoskeleton to repair Enh. Biometal Leg. 16602_ CP-2TL(E) cannibalizes Ovr. Coil Gun to repair Ovr. Coil Gun. 16602_ The unstable cave ceiling collapses. 16602_ CP-2TL(E) destroyed. 16603_ 0bPrime Scrap Suit cannibalized Rnf. Antimatter Reactor to repair Ovr. Antimatter Reactor. 16604_ N-04 Retriever collects Imp. Target Analyzer. 16606_ 0bPrime Scrap Suit cannibalized Ovr. Armored Exoskeleton to repair Enh. Biometal Leg. 16607_ The unstable cave ceiling collapses. 16608_ 0bP_NET: Lugger 576 inbound, all units not involved in other operations escort to target. 16609_ 0bPrime Scrap Suit cannibalized Mak. Heavy Armor Plating to repair Imp. Core Shielding. 16609_ The unstable cave ceiling collapses. 16610_ System corrupted: Component data lost. 16610_ Penetrated by Slug. [Achievement: I Was Wrong!] Map ----- +----------------------------------------------------+ | ##"""!=**![!!%%[%=[&# ???????????#??#???#### " | | "" !%=%!]=!![|[==*=[*!#???????????#####?##### " | | "%*%=!!%!!**=**!% %=[#????????###### #####?## " | | "" |[%!!]*! /%!=/![*[#???????#######"######## " | | " !=*!! " !=!%*|=*=##?#????# " ##### " | | =%" " "" " !=[[%%[%!E## ##### # ""##### " | | " " "" " !!|%!E%*=[!#*=#[# " ""### # = | | " " "=!![*%% %;!!==%!*= "## ##" %= | | !" |%%&=!!*[=% %&!*%#*=![=# ""#""# | | !""""" "=;!! &*%%% %%;=!*=%!=!% "; % | | !=% !=%=!|!!!!%% %%=!==%*%[%! " | | ![=""*!=|[!%!]*=!%%%% *!==%!=!!! %% % %% | | =% "%*%** / !*%*!%%%%!=!![!=*[ " %% % %% | | * %%=]!!=[! %% %%%*=[!*!%% ![![ & %n %& | | %" %% %%*%%% %% [!!*!* = %!=!% % %%% %% | | "% ; %% #% & %; % ;% %%% %% %&% %% %%% | | "%""% %; %% %% %=%%%%%%%%%%%%n%%%%%% % | | "!" ;;% %!!%% %%%%%%%%%%%%%%%%n%%%% % | | " % %;% =%%%! % %% %% % %%% % %% /% | | " " ;; ! !%* #%%% %%## & % ! | | %" " %; [ !%&!! % =! ![ !]= | | %" ;;;!;;;; %!&[![ [ *!*/==!= % | | %"# =!= ! !!]%%=% % =[*[[ [%= % % | | [[ #= =% !! =/%%=%%%[%! ! ; | | %!= ! =%! !|%%%%%%!%! ! =# ; * | | "%[= =# !!* !!%K] !% @ ;##" %%% | | %=!==& % !* %* % [%;!!%;;;;;;;;;# ; % ;;#""" | | %%=%= %| != % ;! ; ###"""""""" #" * | | %[!!!=!==%%=!%!%[ !; ;### " ##[% | | %!%g%g%=*%%![|%! ;% % #### "" " " ## = | | [ *=g%*=%%% % % %! " #### """ # #" """ | | !%&*!]=% % % [! """#### "" # " " | | ]%!=[=* %=!%*!!=! " #### "" "" #"## | | ! !!!%=[%=%*=!m%|=[!!*|* ""## # "% " ## "" | | != =!!!!!==%=[% !!=%|!%= ; " " #### " | | = *!]==%[![[ %= !!!=! ; " % "### | | * =%m= ;;;;;""""""""%"#""#""""" | | ==% %%m % %% %% " | | " *[ % % % %% % " | | "%" === !=% % % % % % + | | " *%!=**[ !|= # | | """ ""#"";###;; !%! # %*;%;""""###""##""## # | | ""#+#"#### # [=| ;/! "% # # | | # " ;; " + % # # | | ### *= ;; " " " "% + + | | """ " " ### " " #; " """ # "" # " | | # # % #; " """ # " "" # ## | | """ """ ### "" "" "; """ # " # # | | ### "# "" " " " # # | | """ """ ### """ " ## " # # | +----------------------------------------------------+ Best States ------------- Heat Dissipation 53 Coolant Potential 120 Energy Generation 63 Energy Capacity 860 Matter Stores 300 Matter Capacity 300 Sight Range 23 Robot Scan Range 20 Terrain Scan Range 24 Terrain Scan Density 1210 ECM Strength 2 Jamming Range 14 Cloak Strength 4 Additional Mass Support 12 Armor Coverage 450 Core Shielding 30 Evasion (%) 78 Targeting Accuracy 12 Core Analysis 8 Armor Integrity Analysis 50 Recoil Reduction 4 Kinecelleration 66 Offensive Hacking 14 Defensive Hacking 14 Item Schematics ----------------- Cmb. Airjet | -9/Materials | Scanalyzed Adv. Heat Sink | -8/Recycling | Hacked Chainsword | -8/Recycling | Hacked Assault Drone Bay | -4/Zhirov | Free Exp. Heat Sink | -4/Zhirov | Free Exp. Optical Array | -4/Zhirov | Free Imp. Arc Thrower | -4/Zhirov | Free Robot Schematics ------------------ None Fabricated ------------ Adv. Melee Analysis Suite | x2 | -6/Factory | Preloaded Repaired ---------- Imp. Heat Sink | 22% | -9/Materials Ion Engine | 61% | -9/Materials Imp. Treads | 5% | -9/Materials Hrd. Medium Armor Plating | 39% | -9/Materials Studied --------- Hvy. Assault Rifle | -9/Materials | Hacked Imp. Hover Unit | -9/Materials | Hacked Lgt. Treads | -9/Materials | Hacked Imp. Treads | -9/Materials | Hacked Hvy. Particle Cannon | -8/Materials | Hacked Hvy. Hammer | -8/Materials | Hacked Cesium-ion Thruster | -6/Factory | Hacked Nuclear Pulse Array | -5/Factory | Hacked Hyb. Deuterium Engine | -5/Factory | Hacked Lgt. Angular Momentum Engine | -5/Factory | Hacked Field Propulsion Array | -4/Factory | Hacked Impulse Thruster Array | -3/Testing | Hacked Q-thruster | -3/Testing | Hacked Impulse Thruster | -2/Research | Hacked Lance | -2/Research | Hacked Mic. Antimatter Reactor | -2/Quarantine | Hacked Alien Tech Used ----------------- Core Expander Integrated Reactor Transdimensional Reconstructor Core Cannon Sigix Broadsword Matter Drive Achievements -------------- Anti-science Crusade Fine I'll Do It Myself Hulk Smash I Was Wrong! Inventory(Loot) Link The Feds Preemptive Strike Super-what Now? UFD MVP We Are One Wiki Contributor Challenges ------------ None Game ------ Seed TerrabombImpulseClaymores Manual? 0 Play Time 05:15:24 Cumulative 207.5 hours Start 2025.10.29 @ 14:33:01 End 2025.10.29 @ 21:36:01 Sessions 1 Manual Loads 0 Difficulty Rogue Special Mode None Game No. 171 Rogue 171 Adventurer 0 Explorer 0 Win Type - Total 4 Types 2/0/0/2/0/0/0/0/0/0 Lore% 75 Gallery% 67 Achievement% 46 Wizard Run 0 Options --------- Layout 0 ASCII 0 Keyboard 1 Movement Numpad Keybinds 0 Fullscreen 1 Font 24/Terminus Map View 76x50 Zoom Use 0% Tactical HUD 1 Map Filters NONE Filters NONE Steam 1 RUN: 69b9e94d-c12e-422d-8062-e72afca56782